{"text_format":"1","workbook":"xlsx","n_sheets":6,"sheets":["Умная Т","Все МО","10 лучших","10 худших","Помесячно по МО","Дашборд ДВН"],"not_rendered":{"charts":8,"images":3,"macros":1,"external_links":0,"defined_names":2,"comments":0,"pivot_tables":4},"unopened":[],"bounds":{"document_bytes":16777216,"sheet_cells":100000,"rows_first":2000,"rows_last":500,"rows_between":2000,"halvings":0,"cell_chars":16384,"cell_head_chars":4096},"cells_cut":0,"cells_raw":0,"read":"whole","date_system":"1900"}

{"sheet":"Умная Т","index":0,"n_rows":243,"n_cols":68,"rows_kept":243,"cut":false,"hidden":true,"merged":[]}
[null,null,"Калужская область",{"$f":"SUM(Таблица1[Оплачено случаев])","v":25846},null,{"$f":"SUM(Таблица1[План ДВН, чел.])","v":16343},null,null,"Выполнение плана, %",{"$f":"ROUND(D1/F1,3)","v":1.581},null,null,null,null,null,{"$f":"(K24+P24+U24+Z24+AE24+AJ24+AO24+AT24+AY24+BD24+BI24+BN24)/(J24+O24+BM24+BH24+BC24+AX24+AS24+AN24+AI24+AD24+Y24+T24)*1000","v":1526.5889193685675}]
[null,null,"Средний тариф ДВН",{"$f":"P1","v":1526.5889193685675},null,null,null,null,null,null,"ФАКТ","ПЛАН",null,null,"ФАКТ",null,"ПЛАН",null,null,"ФАКТ",null,"ПЛАН",null,null,"ФАКТ",null,"ПЛАН",null,null,"ФАКТ",null,"ПЛАН",null,null,"ФАКТ",null,"ПЛАН",null,null,"ФАКТ",null,"ПЛАН",null,null,"ФАКТ",null,"ПЛАН",null,null,"ФАКТ",null,"ПЛАН",null,null,"ФАКТ",null,"ПЛАН",null,null,"ФАКТ",null,"ПЛАН",null,null,"ФАКТ",null,"ПЛАН"]
["Месяц","Вид ","Наименование медицинской организации","Оплачено случаев","Оплачено сумма, тыс.руб.","План ДВН, чел.","Отклонение","% выполнения",null,"1мес","январь","январь","2 мес",null,"Февраль",null,"Февраль","3 мес",null,"Март",null,"Март","4 мес",null,"Апрель",null,"Апрель","5 мес",null,"Май",null,"Май","6 мес",null,"Июнь",null,"Июнь","7 мес",null,"Июль",null,"Июль","8 мес",null,"Август",null,"Август","9 мес",null,"Сентябрь",null,"Сентябрь","10 мес",null,"Октябрь",null,"Октябрь","11 мес",null,"Ноябрь",null,"Ноябрь","12 мес",null,"Декабрь",null,"Декабрь"]
["Январь","ДВН","ЦМБ № 1",{"$f":"J4","v":124},{"$f":"K4","v":206.6413},{"$f":"L4","v":110},{"$f":"Таблица1[[#This Row],[Оплачено случаев]]-Таблица1[[#This Row],[План ДВН, чел.]]","v":14},{"$f":"ROUND(Таблица1[[#This Row],[Оплачено случаев]]/Таблица1[[#This Row],[План ДВН, чел.]]*100,1)","v":112.7},null,124,206.6413,110,{"$f":"J4+O4","v":434},{"$f":"K4+P4","v":744.47872000000007},310,537.83742000000007,242,{"$f":"M4+T4","v":744},{"$f":"N4+U4","v":1238.8302000000001},310,494.35147999999998,277,{"$f":"R4+Y4","v":744},{"$f":"S4+Z4","v":1238.8302000000001},null,null,null,{"$f":"W4+AD4","v":744},{"$f":"X4+AE4","v":1238.8302000000001},null,null,null,{"$f":"AB4+AI4","v":744},{"$f":"AC4+AJ4","v":1238.8302000000001},null,null,null,{"$f":"AG4+AN4","v":744},{"$f":"AH4+AO4","v":1238.8302000000001},null,null,null,{"$f":"AL4+AS4","v":744},{"$f":"AM4+AT4","v":1238.8302000000001},null,null,null,{"$f":"AQ4+AX4","v":744},{"$f":"AR4+AY4","v":1238.8302000000001},null,null,null,{"$f":"AV4+BC4","v":744},{"$f":"AW4+BD4","v":1238.8302000000001},null,null,null,{"$f":"BA4+BH4","v":744},{"$f":"BB4+BI4","v":1238.8302000000001},null,null,null,{"$f":"BM4+BF4","v":744},{"$f":"BG4+BN4","v":1238.8302000000001},null,null,null,{"$f":"BJ4+BE4+AZ4+AU4+AP4+AK4+AF4++AA4+V4+Q4+L4","v":629}]
["Январь","ДВН","ЦМБ № 2",{"$f":"J5","v":814},{"$f":"K5","v":1518.6743600000002},{"$f":"L5","v":327},{"$f":"Таблица1[[#This Row],[Оплачено случаев]]-Таблица1[[#This Row],[План ДВН, чел.]]","v":487},{"$f":"ROUND(Таблица1[[#This Row],[Оплачено случаев]]/Таблица1[[#This Row],[План ДВН, чел.]]*100,1)","v":248.9},null,814,1518.6743600000002,327,{"$f":"J5+O5","v":1706},3183.0214800000003,892,1664.3471200000001,541,{"$f":"M5+T5","v":1727},{"$f":"N5+U5","v":3210.8229600000004},21,27.801479999999998,541,{"$f":"R5+Y5","v":1727},{"$f":"S5+Z5","v":3210.8229600000004},null,null,null,{"$f":"W5+AD5","v":1727},{"$f":"X5+AE5","v":3210.8229600000004},null,null,null,{"$f":"AB5+AI5","v":1727},{"$f":"AC5+AJ5","v":3210.8229600000004},null,null,null,{"$f":"AG5+AN5","v":1727},{"$f":"AH5+AO5","v":3210.8229600000004},null,null,null,{"$f":"AL5+AS5","v":1727},{"$f":"AM5+AT5","v":3210.8229600000004},null,null,null,{"$f":"AQ5+AX5","v":1727},{"$f":"AR5+AY5","v":3210.8229600000004},null,null,null,{"$f":"AV5+BC5","v":1727},{"$f":"AW5+BD5","v":3210.8229600000004},null,null,null,{"$f":"BA5+BH5","v":1727},{"$f":"BB5+BI5","v":3210.8229600000004},null,null,null,{"$f":"BM5+BF5","v":1727},{"$f":"BG5+BN5","v":3210.8229600000004},null,null,null,{"$f":"BJ5+BE5+AZ5+AU5+AP5+AK5+AF5++AA5+V5+Q5+L5","v":1409}]
["Январь","ДВН","ЦМБ № 3",319,436.834,80,{"$f":"Таблица1[[#This Row],[Оплачено случаев]]-Таблица1[[#This Row],[План ДВН, чел.]]","v":239},{"$f":"ROUND(Таблица1[[#This Row],[Оплачено случаев]]/Таблица1[[#This Row],[План ДВН, чел.]]*100,1)","v":398.8},null,319,436.834,80,617,840.09641999999997,298,403.26241999999996,80,777,1055.85194,160,215.75551999999999,131,777,1055.85194,null,null,null,777,1055.85194,null,null,null,777,1055.85194,null,null,null,777,1055.85194,null,null,null,777,1055.85194,null,null,null,777,1055.85194,null,null,null,777,1055.85194,null,null,null,777,1055.85194,null,null,null,777,1055.85194,null,null,null,291]
["Январь","ДВН","ЦМБ № 4",151,210.81923999999998,78,{"$f":"Таблица1[[#This Row],[Оплачено случаев]]-Таблица1[[#This Row],[План ДВН, чел.]]","v":73},{"$f":"ROUND(Таблица1[[#This Row],[Оплачено случаев]]/Таблица1[[#This Row],[План ДВН, чел.]]*100,1)","v":193.6},null,151,210.81923999999998,78,259,380.56103999999993,108,169.74179999999998,124,396,592.42211999999995,137,211.86107999999999,125,396,592.42211999999995,null,null,null,396,592.42211999999995,null,null,null,396,592.42211999999995,null,null,null,396,592.42211999999995,null,null,null,396,592.42211999999995,null,null,null,396,592.42211999999995,null,null,null,396,592.42211999999995,null,null,null,396,592.42211999999995,null,null,null,396,592.42211999999995,null,null,null,327]
["Январь","ДВН","ЦМБ № 5",33,57.237540000000003,113,{"$f":"Таблица1[[#This Row],[Оплачено случаев]]-Таблица1[[#This Row],[План ДВН, чел.]]","v":-80},{"$f":"ROUND(Таблица1[[#This Row],[Оплачено случаев]]/Таблица1[[#This Row],[План ДВН, чел.]]*100,1)","v":29.2},null,33,57.237540000000003,113,468,811.9787399999999,435,754.74119999999994,228,714,1145.86186,246,333.88312000000002,246,714,1145.86186,null,null,null,714,1145.86186,null,null,null,714,1145.86186,null,null,null,714,1145.86186,null,null,null,714,1145.86186,null,null,null,714,1145.86186,null,null,null,714,1145.86186,null,null,null,714,1145.86186,null,null,null,714,1145.86186,null,null,null,587]
["Январь","ДВН","ЦМБ № 6",569,886.71668,375,{"$f":"Таблица1[[#This Row],[Оплачено случаев]]-Таблица1[[#This Row],[План ДВН, чел.]]","v":194},{"$f":"ROUND(Таблица1[[#This Row],[Оплачено случаев]]/Таблица1[[#This Row],[План ДВН, чел.]]*100,1)","v":151.69999999999999},null,569,886.71668,375,1998,3148.5213600000002,1429,2261.8046800000002,500,3300,5175.8003600000002,1302,2027.279,500,3300,5175.8003600000002,null,null,null,3300,5175.8003600000002,null,null,null,3300,5175.8003600000002,null,null,null,3300,5175.8003600000002,null,null,null,3300,5175.8003600000002,null,null,null,3300,5175.8003600000002,null,null,null,3300,5175.8003600000002,null,null,null,3300,5175.8003600000002,null,null,null,3300,5175.8003600000002,null,null,null,1375]
["Январь","ДВН","КГБ № 5",1370,2123.19382,395,{"$f":"Таблица1[[#This Row],[Оплачено случаев]]-Таблица1[[#This Row],[План ДВН, чел.]]","v":975},{"$f":"ROUND(Таблица1[[#This Row],[Оплачено случаев]]/Таблица1[[#This Row],[План ДВН, чел.]]*100,1)","v":346.8},null,1370,2123.19382,395,2739,4294.5719200000003,1369,2171.3780999999999,1350,4144,6491.7366000000002,1405,2197.1646800000003,1350,4144,6491.7366000000002,null,null,null,4144,6491.7366000000002,null,null,null,4144,6491.7366000000002,null,null,null,4144,6491.7366000000002,null,null,null,4144,6491.7366000000002,null,null,null,4144,6491.7366000000002,null,null,null,4144,6491.7366000000002,null,null,null,4144,6491.7366000000002,null,null,null,4144,6491.7366000000002,null,null,null,3095]
["Январь","ДВН","КГКБ № 4",917,1351.3246399999998,745,{"$f":"Таблица1[[#This Row],[Оплачено случаев]]-Таблица1[[#This Row],[План ДВН, чел.]]","v":172},{"$f":"ROUND(Таблица1[[#This Row],[Оплачено случаев]]/Таблица1[[#This Row],[План ДВН, чел.]]*100,1)","v":123.1},null,917,1351.3246399999998,745,1891,2821.4083999999998,974,1470.08376,745,2871,4148.5918199999996,980,1327.1834199999998,745,2871,4148.5918199999996,null,null,null,2871,4148.5918199999996,null,null,null,2871,4148.5918199999996,null,null,null,2871,4148.5918199999996,null,null,null,2871,4148.5918199999996,null,null,null,2871,4148.5918199999996,null,null,null,2871,4148.5918199999996,null,null,null,2871,4148.5918199999996,null,null,null,2871,4148.5918199999996,null,null,null,2235]
["Январь","ДВН","Городская поликлиника",1299,1795.7885000000001,606,{"$f":"Таблица1[[#This Row],[Оплачено случаев]]-Таблица1[[#This Row],[План ДВН, чел.]]","v":693},{"$f":"ROUND(Таблица1[[#This Row],[Оплачено случаев]]/Таблица1[[#This Row],[План ДВН, чел.]]*100,1)","v":214.4},null,1299,1795.7885000000001,606,3153,4329.8205799999996,1854,2534.03208,630,4491,6153.3328399999991,1338,1823.51226,630,4491,6153.3328399999991,null,null,null,4491,6153.3328399999991,null,null,null,4491,6153.3328399999991,null,null,null,4491,6153.3328399999991,null,null,null,4491,6153.3328399999991,null,null,null,4491,6153.3328399999991,null,null,null,4491,6153.3328399999991,null,null,null,4491,6153.3328399999991,null,null,null,4491,6153.3328399999991,null,null,null,1866]
["Январь","ДВН","МСЧ № 1 г. Калуги",0,0,0,{"$f":"Таблица1[[#This Row],[Оплачено случаев]]-Таблица1[[#This Row],[План ДВН, чел.]]","v":0},{"$f":"ROUND(Таблица1[[#This Row],[Оплачено случаев]]/Таблица1[[#This Row],[План ДВН, чел.]]*100,1)","v":{"$error":"#DIV/0!"}},null,null,0,0,79,110.89416,79,110.89416,3,144,201.35595999999998,65,90.461799999999997,10,144,201.35595999999998,null,null,null,144,201.35595999999998,null,null,null,144,201.35595999999998,null,null,null,144,201.35595999999998,null,null,null,144,201.35595999999998,null,null,null,144,201.35595999999998,null,null,null,144,201.35595999999998,null,null,null,144,201.35595999999998,null,null,null,144,201.35595999999998,null,null,null,13]
["Январь","ДВН","МСЧ № 2 г. Калуги",0,0,0,{"$f":"Таблица1[[#This Row],[Оплачено случаев]]-Таблица1[[#This Row],[План ДВН, чел.]]","v":0},{"$f":"ROUND(Таблица1[[#This Row],[Оплачено случаев]]/Таблица1[[#This Row],[План ДВН, чел.]]*100,1)","v":{"$error":"#DIV/0!"}},null,null,0,0,0,0,null,0,0,0,0,null,0,1,0,0,null,null,null,0,0,null,null,null,0,0,null,null,null,0,0,null,null,null,0,0,null,null,null,0,0,null,null,null,0,0,null,null,null,0,0,null,null,null,0,0,null,null,null,1]
["Январь","ДВН","МСЧ МВД",0,0,0,{"$f":"Таблица1[[#This Row],[Оплачено случаев]]-Таблица1[[#This Row],[План ДВН, чел.]]","v":0},{"$f":"ROUND(Таблица1[[#This Row],[Оплачено случаев]]/Таблица1[[#This Row],[План ДВН, чел.]]*100,1)","v":{"$error":"#DIV/0!"}},null,null,0,0,0,0,null,0,null,0,0,null,0,null,0,0,null,null,null,0,0,null,null,null,0,0,null,null,null,0,0,null,null,null,0,0,null,null,null,0,0,null,null,null,0,0,null,null,null,0,0,null,null,null,0,0,null,null,null,0]
["Январь","ДВН","ЧУЗ \"Больница \"РЖД - Медицина\" ",23,41.354459999999996,9,{"$f":"Таблица1[[#This Row],[Оплачено случаев]]-Таблица1[[#This Row],[План ДВН, чел.]]","v":14},{"$f":"ROUND(Таблица1[[#This Row],[Оплачено случаев]]/Таблица1[[#This Row],[План ДВН, чел.]]*100,1)","v":255.6},null,23,41.354459999999996,9,87,156.8005,64,115.44604,9,127,228.72129999999999,40,71.9208,10,127,228.72129999999999,null,null,null,127,228.72129999999999,null,null,null,127,228.72129999999999,null,null,null,127,228.72129999999999,null,null,null,127,228.72129999999999,null,null,null,127,228.72129999999999,null,null,null,127,228.72129999999999,null,null,null,127,228.72129999999999,null,null,null,127,228.72129999999999,null,null,null,28]
["Январь","ДВН","КБ № 8 ФМБА",602,837.81543999999997,417,{"$f":"Таблица1[[#This Row],[Оплачено случаев]]-Таблица1[[#This Row],[План ДВН, чел.]]","v":185},{"$f":"ROUND(Таблица1[[#This Row],[Оплачено случаев]]/Таблица1[[#This Row],[План ДВН, чел.]]*100,1)","v":144.4},null,602,837.81543999999997,417,1716,2388.1915199999999,1114,1550.37608,735,2465,3432.0267699999999,749,1043.8352500000001,825,2465,3432.0267699999999,null,null,null,2465,3432.0267699999999,null,null,null,2465,3432.0267699999999,null,null,null,2465,3432.0267699999999,null,null,null,2465,3432.0267699999999,null,null,null,2465,3432.0267699999999,null,null,null,2465,3432.0267699999999,null,null,null,2465,3432.0267699999999,null,null,null,2465,3432.0267699999999,null,null,null,1977]
["Январь","ДВН","ЦРБ Бабынинского района",105,195.9153,28,{"$f":"Таблица1[[#This Row],[Оплачено случаев]]-Таблица1[[#This Row],[План ДВН, чел.]]","v":77},{"$f":"ROUND(Таблица1[[#This Row],[Оплачено случаев]]/Таблица1[[#This Row],[План ДВН, чел.]]*100,1)","v":375},null,105,195.9153,28,283,449.80528000000004,178,253.88998000000001,28,287,457.26872000000003,4,7.4634399999999994,30,287,457.26872000000003,null,null,null,287,457.26872000000003,null,null,null,287,457.26872000000003,null,null,null,287,457.26872000000003,null,null,null,287,457.26872000000003,null,null,null,287,457.26872000000003,null,null,null,287,457.26872000000003,null,null,null,287,457.26872000000003,null,null,null,287,457.26872000000003,null,null,null,86]
["Январь","ДВН","ЦРБ Боровского района",397,740.74642000000006,319,{"$f":"Таблица1[[#This Row],[Оплачено случаев]]-Таблица1[[#This Row],[План ДВН, чел.]]","v":78},{"$f":"ROUND(Таблица1[[#This Row],[Оплачено случаев]]/Таблица1[[#This Row],[План ДВН, чел.]]*100,1)","v":124.5},null,397,740.74642000000006,319,876,1629.2778200000002,479,888.53140000000008,319,1273,2281.8342000000002,397,652.55637999999999,319,1273,2281.8342000000002,null,null,null,1273,2281.8342000000002,null,null,null,1273,2281.8342000000002,null,null,null,1273,2281.8342000000002,null,null,null,1273,2281.8342000000002,null,null,null,1273,2281.8342000000002,null,null,null,1273,2281.8342000000002,null,null,null,1273,2281.8342000000002,null,null,null,1273,2281.8342000000002,null,null,null,957]
["Январь","ДВН","ЦРБ Жуковского района",200,367.48232000000002,200,{"$f":"Таблица1[[#This Row],[Оплачено случаев]]-Таблица1[[#This Row],[План ДВН, чел.]]","v":0},{"$f":"ROUND(Таблица1[[#This Row],[Оплачено случаев]]/Таблица1[[#This Row],[План ДВН, чел.]]*100,1)","v":100},null,200,367.48232000000002,200,402,734.90323999999998,202,367.42091999999997,230,714,1302.2175400000001,312,567.3143,240,714,1302.2175400000001,null,null,null,714,1302.2175400000001,null,null,null,714,1302.2175400000001,null,null,null,714,1302.2175400000001,null,null,null,714,1302.2175400000001,null,null,null,714,1302.2175400000001,null,null,null,714,1302.2175400000001,null,null,null,714,1302.2175400000001,null,null,null,714,1302.2175400000001,null,null,null,670]
["Январь","ДВН","ГП \"Город Кременки\"",31,57.841660000000005,30,{"$f":"Таблица1[[#This Row],[Оплачено случаев]]-Таблица1[[#This Row],[План ДВН, чел.]]","v":1},{"$f":"ROUND(Таблица1[[#This Row],[Оплачено случаев]]/Таблица1[[#This Row],[План ДВН, чел.]]*100,1)","v":103.3},null,31,57.841660000000005,30,66,123.14676,35,65.305099999999996,50,111,185.77415999999999,45,62.627400000000002,50,111,185.77415999999999,null,null,null,111,185.77415999999999,null,null,null,111,185.77415999999999,null,null,null,111,185.77415999999999,null,null,null,111,185.77415999999999,null,null,null,111,185.77415999999999,null,null,null,111,185.77415999999999,null,null,null,111,185.77415999999999,null,null,null,111,185.77415999999999,null,null,null,130]
["Январь","ДВН","ЦРБ Малоярославецкого района",334,452.20735999999999,150,{"$f":"Таблица1[[#This Row],[Оплачено случаев]]-Таблица1[[#This Row],[План ДВН, чел.]]","v":184},{"$f":"ROUND(Таблица1[[#This Row],[Оплачено случаев]]/Таблица1[[#This Row],[План ДВН, чел.]]*100,1)","v":222.7},null,334,452.20735999999999,150,702,965.27973999999995,368,513.07237999999995,150,998,1363.1173999999999,296,397.83765999999997,150,998,1363.1173999999999,null,null,null,998,1363.1173999999999,null,null,null,998,1363.1173999999999,null,null,null,998,1363.1173999999999,null,null,null,998,1363.1173999999999,null,null,null,998,1363.1173999999999,null,null,null,998,1363.1173999999999,null,null,null,998,1363.1173999999999,null,null,null,998,1363.1173999999999,null,null,null,450]
["Январь","ДВН","ЦРБ  Тарусского района",94,130.82167999999999,70,{"$f":"Таблица1[[#This Row],[Оплачено случаев]]-Таблица1[[#This Row],[План ДВН, чел.]]","v":24},{"$f":"ROUND(Таблица1[[#This Row],[Оплачено случаев]]/Таблица1[[#This Row],[План ДВН, чел.]]*100,1)","v":134.30000000000001},null,94,130.82167999999999,70,331,462.08173999999997,237,331.26006000000001,55,563,790.65045999999995,232,328.56871999999998,92,563,790.65045999999995,null,null,null,563,790.65045999999995,null,null,null,563,790.65045999999995,null,null,null,563,790.65045999999995,null,null,null,563,790.65045999999995,null,null,null,563,790.65045999999995,null,null,null,563,790.65045999999995,null,null,null,563,790.65045999999995,null,null,null,563,790.65045999999995,null,null,null,217]
["Февраль","ДВН","ЦМБ № 1",{"$f":"O4","v":310},{"$f":"P4","v":537.83742000000007},{"$f":"Q4","v":242},{"$f":"Таблица1[[#This Row],[Оплачено случаев]]-Таблица1[[#This Row],[План ДВН, чел.]]","v":68},{"$f":"ROUND(Таблица1[[#This Row],[Оплачено случаев]]/Таблица1[[#This Row],[План ДВН, чел.]]*100,1)","v":128.1},null,{"$f":"SUM(J4:J23)","v":7382},11411.414719999999,4052,17807,27574.839420000004,10425,16163.4247,6019,25846,39456.217209999995,8039,11881.377789999997,6272,25846,39456.217209999995,0,0,0,25846,39456.217209999995,0,0,0,25846,39456.217209999995,0,0,0,25846,39456.217209999995,0,0,{"$f":"SUM(AP4:AP23)","v":0},25846,39456.217209999995,0,0,0,25846,39456.217209999995,0,0,0,25846,39456.217209999995,0,0,0,25846,39456.217209999995,0,0,0,25846,{"$f":"SUM(BL4:BL23)","v":39456.217209999995},0,0,0,16343]
["Февраль","ДВН","ЦМБ № 2",892,1664.3471200000001,541,{"$f":"Таблица1[[#This Row],[Оплачено случаев]]-Таблица1[[#This Row],[План ДВН, чел.]]","v":351},{"$f":"ROUND(Таблица1[[#This Row],[Оплачено случаев]]/Таблица1[[#This Row],[План ДВН, чел.]]*100,1)","v":164.9}]
["Февраль","ДВН","ЦМБ № 3",298,403.26241999999996,80,{"$f":"Таблица1[[#This Row],[Оплачено случаев]]-Таблица1[[#This Row],[План ДВН, чел.]]","v":218},{"$f":"ROUND(Таблица1[[#This Row],[Оплачено случаев]]/Таблица1[[#This Row],[План ДВН, чел.]]*100,1)","v":372.5},null,null,{"$f":"K4/1000","v":0.2066413},null,null,null,null,{"$f":"P4/1000","v":0.53783742000000001},null,null,null,null,{"$f":"U4/1000","v":0.49435147999999995},null,null,null,null,{"$f":"Z4/1000","v":0},null,null,null,null,{"$f":"AE4/1000","v":0},null,null,null,null,{"$f":"AJ4/1000","v":0},null,null,null,null,{"$f":"AO4/1000","v":0},null,null,null,null,{"$f":"AT4/1000","v":0}]
["Февраль","ДВН","ЦМБ № 4",108,169.74179999999998,124,{"$f":"Таблица1[[#This Row],[Оплачено случаев]]-Таблица1[[#This Row],[План ДВН, чел.]]","v":-16},{"$f":"ROUND(Таблица1[[#This Row],[Оплачено случаев]]/Таблица1[[#This Row],[План ДВН, чел.]]*100,1)","v":87.1},null,null,{"$f":"K5/1000","v":1.5186743600000001},null,null,null,null,{"$f":"P5/1000","v":1.6643471200000002},null,null,null,null,{"$f":"U5/1000","v":2.7801479999999996E-2},null,null,null,null,{"$f":"Z5/1000","v":0},null,null,null,null,{"$f":"AE5/1000","v":0},null,null,null,null,{"$f":"AJ5/1000","v":0},null,null,null,null,{"$f":"AO5/1000","v":0},null,null,null,null,{"$f":"AT5/1000","v":0}]
["Февраль","ДВН","ЦМБ № 5",435,754.74119999999994,228,{"$f":"Таблица1[[#This Row],[Оплачено случаев]]-Таблица1[[#This Row],[План ДВН, чел.]]","v":207},{"$f":"ROUND(Таблица1[[#This Row],[Оплачено случаев]]/Таблица1[[#This Row],[План ДВН, чел.]]*100,1)","v":190.8},null,null,0.436834,null,null,null,null,0.40326241999999995,null,null,null,null,0.21575551999999998,null,null,null,null,0,null,null,null,null,0,null,null,null,null,0,null,null,null,null,0,null,null,null,null,0]
["Февраль","ДВН","ЦМБ № 6",1429,2261.8046800000002,500,{"$f":"Таблица1[[#This Row],[Оплачено случаев]]-Таблица1[[#This Row],[План ДВН, чел.]]","v":929},{"$f":"ROUND(Таблица1[[#This Row],[Оплачено случаев]]/Таблица1[[#This Row],[План ДВН, чел.]]*100,1)","v":285.8},null,null,0.21081923999999999,null,null,null,null,0.16974179999999997,null,null,null,null,0.21186107999999998,null,null,null,null,0,null,null,null,null,0,null,null,null,null,0,null,null,null,null,0,null,null,null,null,0]
["Февраль","ДВН","КГБ № 5",1369,2171.3780999999999,1350,{"$f":"Таблица1[[#This Row],[Оплачено случаев]]-Таблица1[[#This Row],[План ДВН, чел.]]","v":19},{"$f":"ROUND(Таблица1[[#This Row],[Оплачено случаев]]/Таблица1[[#This Row],[План ДВН, чел.]]*100,1)","v":101.4},null,null,5.7237540000000003E-2,null,null,null,null,0.75474119999999989,null,null,null,null,0.33388312000000003,null,null,null,null,0,null,null,null,null,0,null,null,null,null,0,null,null,null,null,0,null,null,null,null,0]
["Февраль","ДВН","КГКБ № 4",974,1470.08376,745,{"$f":"Таблица1[[#This Row],[Оплачено случаев]]-Таблица1[[#This Row],[План ДВН, чел.]]","v":229},{"$f":"ROUND(Таблица1[[#This Row],[Оплачено случаев]]/Таблица1[[#This Row],[План ДВН, чел.]]*100,1)","v":130.69999999999999},null,null,0.88671668000000003,null,null,null,null,2.26180468,null,null,null,null,2.0272790000000001,null,null,null,null,0,null,null,null,null,0,null,null,null,null,0,null,null,null,null,0,null,null,null,null,0]
["Февраль","ДВН","Городская поликлиника",1854,2534.03208,630,{"$f":"Таблица1[[#This Row],[Оплачено случаев]]-Таблица1[[#This Row],[План ДВН, чел.]]","v":1224},{"$f":"ROUND(Таблица1[[#This Row],[Оплачено случаев]]/Таблица1[[#This Row],[План ДВН, чел.]]*100,1)","v":294.3},null,null,2.12319382,null,null,null,null,2.1713781000000001,null,null,null,null,2.1971646800000002,null,null,null,null,0,null,null,null,null,0,null,null,null,null,0,null,null,null,null,0,null,null,null,null,0]
["Февраль","ДВН","МСЧ № 1 г. Калуги",79,110.89416,3,{"$f":"Таблица1[[#This Row],[Оплачено случаев]]-Таблица1[[#This Row],[План ДВН, чел.]]","v":76},{"$f":"ROUND(Таблица1[[#This Row],[Оплачено случаев]]/Таблица1[[#This Row],[План ДВН, чел.]]*100,1)","v":2633.3},null,null,1.3513246399999999,null,null,null,null,1.4700837600000001,null,null,null,null,1.3271834199999999,null,null,null,null,0,null,null,null,null,0,null,null,null,null,0,null,null,null,null,0,null,null,null,null,0]
["Февраль","ДВН","МСЧ № 2 г. Калуги",0,0,0,{"$f":"Таблица1[[#This Row],[Оплачено случаев]]-Таблица1[[#This Row],[План ДВН, чел.]]","v":0},{"$f":"ROUND(Таблица1[[#This Row],[Оплачено случаев]]/Таблица1[[#This Row],[План ДВН, чел.]]*100,1)","v":{"$error":"#DIV/0!"}},null,null,1.7957885,null,null,null,null,2.5340320799999998,null,null,null,null,1.82351226,null,null,null,null,0,null,null,null,null,0,null,null,null,null,0,null,null,null,null,0,null,null,null,null,0]
["Февраль","ДВН","МСЧ МВД",0,0,0,{"$f":"Таблица1[[#This Row],[Оплачено случаев]]-Таблица1[[#This Row],[План ДВН, чел.]]","v":0},{"$f":"ROUND(Таблица1[[#This Row],[Оплачено случаев]]/Таблица1[[#This Row],[План ДВН, чел.]]*100,1)","v":{"$error":"#DIV/0!"}},null,null,0,null,null,null,null,0.11089416000000001,null,null,null,null,9.0461799999999995E-2,null,null,null,null,0,null,null,null,null,0,null,null,null,null,0,null,null,null,null,0,null,null,null,null,0]
["Февраль","ДВН","ЧУЗ \"Больница \"РЖД - Медицина\" ",64,115.44604,9,{"$f":"Таблица1[[#This Row],[Оплачено случаев]]-Таблица1[[#This Row],[План ДВН, чел.]]","v":55},{"$f":"ROUND(Таблица1[[#This Row],[Оплачено случаев]]/Таблица1[[#This Row],[План ДВН, чел.]]*100,1)","v":711.1},null,null,0,null,null,null,null,0,null,null,null,null,0,null,null,null,null,0,null,null,null,null,0,null,null,null,null,0,null,null,null,null,0,null,null,null,null,0]
["Февраль","ДВН","КБ № 8 ФМБА",1114,1550.37608,735,{"$f":"Таблица1[[#This Row],[Оплачено случаев]]-Таблица1[[#This Row],[План ДВН, чел.]]","v":379},{"$f":"ROUND(Таблица1[[#This Row],[Оплачено случаев]]/Таблица1[[#This Row],[План ДВН, чел.]]*100,1)","v":151.6},null,null,0,null,null,null,null,0,null,null,null,null,0,null,null,null,null,0,null,null,null,null,0,null,null,null,null,0,null,null,null,null,0,null,null,null,null,0]
["Февраль","ДВН","ЦРБ Бабынинского района",178,253.88998000000001,28,{"$f":"Таблица1[[#This Row],[Оплачено случаев]]-Таблица1[[#This Row],[План ДВН, чел.]]","v":150},{"$f":"ROUND(Таблица1[[#This Row],[Оплачено случаев]]/Таблица1[[#This Row],[План ДВН, чел.]]*100,1)","v":635.70000000000005},null,null,4.1354459999999996E-2,null,null,null,null,0.11544604,null,null,null,null,7.1920799999999993E-2,null,null,null,null,0,null,null,null,null,0,null,null,null,null,0,null,null,null,null,0,null,null,null,null,0]
["Февраль","ДВН","ЦРБ Боровского района",479,888.53140000000008,319,{"$f":"Таблица1[[#This Row],[Оплачено случаев]]-Таблица1[[#This Row],[План ДВН, чел.]]","v":160},{"$f":"ROUND(Таблица1[[#This Row],[Оплачено случаев]]/Таблица1[[#This Row],[План ДВН, чел.]]*100,1)","v":150.19999999999999},null,null,0.83781543999999997,null,null,null,null,1.5503760799999999,null,null,null,null,1.0438352500000001,null,null,null,null,0,null,null,null,null,0,null,null,null,null,0,null,null,null,null,0,null,null,null,null,0]
["Февраль","ДВН","ЦРБ Жуковского района",202,367.42091999999997,230,{"$f":"Таблица1[[#This Row],[Оплачено случаев]]-Таблица1[[#This Row],[План ДВН, чел.]]","v":-28},{"$f":"ROUND(Таблица1[[#This Row],[Оплачено случаев]]/Таблица1[[#This Row],[План ДВН, чел.]]*100,1)","v":87.8},null,null,0.19591530000000001,null,null,null,null,0.25388998000000002,null,null,null,null,7.4634399999999991E-3,null,null,null,null,0,null,null,null,null,0,null,null,null,null,0,null,null,null,null,0,null,null,null,null,0]
["Февраль","ДВН","ГП \"Город Кременки\"",35,65.305099999999996,50,{"$f":"Таблица1[[#This Row],[Оплачено случаев]]-Таблица1[[#This Row],[План ДВН, чел.]]","v":-15},{"$f":"ROUND(Таблица1[[#This Row],[Оплачено случаев]]/Таблица1[[#This Row],[План ДВН, чел.]]*100,1)","v":70},null,null,0.74074642000000002,null,null,null,null,0.88853140000000008,null,null,null,null,0.65255637999999994,null,null,null,null,0,null,null,null,null,0,null,null,null,null,0,null,null,null,null,0,null,null,null,null,0]
["Февраль","ДВН","ЦРБ Малоярославецкого района",368,513.07237999999995,150,{"$f":"Таблица1[[#This Row],[Оплачено случаев]]-Таблица1[[#This Row],[План ДВН, чел.]]","v":218},{"$f":"ROUND(Таблица1[[#This Row],[Оплачено случаев]]/Таблица1[[#This Row],[План ДВН, чел.]]*100,1)","v":245.3},null,null,0.36748232000000003,null,null,null,null,0.36742091999999998,null,null,null,null,0.56731430000000005,null,null,null,null,0,null,null,null,null,0,null,null,null,null,0,null,null,null,null,0,null,null,null,null,0]
["Февраль","ДВН","ЦРБ  Тарусского района",237,331.26006000000001,55,{"$f":"Таблица1[[#This Row],[Оплачено случаев]]-Таблица1[[#This Row],[План ДВН, чел.]]","v":182},{"$f":"ROUND(Таблица1[[#This Row],[Оплачено случаев]]/Таблица1[[#This Row],[План ДВН, чел.]]*100,1)","v":430.9},null,null,5.7841660000000003E-2,null,null,null,null,6.5305099999999991E-2,null,null,null,null,6.26274E-2,null,null,null,null,0,null,null,null,null,0,null,null,null,null,0,null,null,null,null,0,null,null,null,null,0]
["Март","ДВН","ЦМБ № 1",{"$f":"T4","v":310},{"$f":"U4","v":494.35147999999998},{"$f":"V4","v":277},{"$f":"Таблица1[[#This Row],[Оплачено случаев]]-Таблица1[[#This Row],[План ДВН, чел.]]","v":33},{"$f":"ROUND(Таблица1[[#This Row],[Оплачено случаев]]/Таблица1[[#This Row],[План ДВН, чел.]]*100,1)","v":111.9},null,null,0.45220736,null,null,null,null,0.51307237999999999,null,null,null,null,0.39783765999999998,null,null,null,null,0,null,null,null,null,0,null,null,null,null,0,null,null,null,null,0,null,null,null,null,0]
["Март","ДВН","ЦМБ № 2",21,27.801479999999998,541,{"$f":"Таблица1[[#This Row],[Оплачено случаев]]-Таблица1[[#This Row],[План ДВН, чел.]]","v":-520},{"$f":"ROUND(Таблица1[[#This Row],[Оплачено случаев]]/Таблица1[[#This Row],[План ДВН, чел.]]*100,1)","v":3.9},null,null,0.13082168,null,null,null,null,0.33126006000000002,null,null,null,null,0.32856871999999998,null,null,null,null,0,null,null,null,null,0,null,null,null,null,0,null,null,null,null,0,null,null,null,null,0]
["Март","ДВН","ЦМБ № 3",160,215.75551999999999,131,{"$f":"Таблица1[[#This Row],[Оплачено случаев]]-Таблица1[[#This Row],[План ДВН, чел.]]","v":29},{"$f":"ROUND(Таблица1[[#This Row],[Оплачено случаев]]/Таблица1[[#This Row],[План ДВН, чел.]]*100,1)","v":122.1},null,null,{"$f":"K24/1000","v":11.411414719999998},null,null,null,null,{"$f":"P24/1000","v":16.1634247},null,null,null,null,11.881377789999997,null,null,null,null,null,null,null,null,null,0,null,null,null,null,0,null,null,null,null,0]
["Март","ДВН","ЦМБ № 4",137,211.86107999999999,125,{"$f":"Таблица1[[#This Row],[Оплачено случаев]]-Таблица1[[#This Row],[План ДВН, чел.]]","v":12},{"$f":"ROUND(Таблица1[[#This Row],[Оплачено случаев]]/Таблица1[[#This Row],[План ДВН, чел.]]*100,1)","v":109.6},null,null,0]
["Март","ДВН","ЦМБ № 5",246,333.88312000000002,246,{"$f":"Таблица1[[#This Row],[Оплачено случаев]]-Таблица1[[#This Row],[План ДВН, чел.]]","v":0},{"$f":"ROUND(Таблица1[[#This Row],[Оплачено случаев]]/Таблица1[[#This Row],[План ДВН, чел.]]*100,1)","v":100},null,null,2.066413E-4]
["Март","ДВН","ЦМБ № 6",1302,2027.279,500,{"$f":"Таблица1[[#This Row],[Оплачено случаев]]-Таблица1[[#This Row],[План ДВН, чел.]]","v":802},{"$f":"ROUND(Таблица1[[#This Row],[Оплачено случаев]]/Таблица1[[#This Row],[План ДВН, чел.]]*100,1)","v":260.39999999999998},null,null,1.5186743600000001E-3]
["Март","ДВН","КГБ № 5",1405,2197.1646800000003,1350,{"$f":"Таблица1[[#This Row],[Оплачено случаев]]-Таблица1[[#This Row],[План ДВН, чел.]]","v":55},{"$f":"ROUND(Таблица1[[#This Row],[Оплачено случаев]]/Таблица1[[#This Row],[План ДВН, чел.]]*100,1)","v":104.1},null,null,4.3683399999999999E-4]
["Март","ДВН","КГКБ № 4",980,1327.1834199999998,745,{"$f":"Таблица1[[#This Row],[Оплачено случаев]]-Таблица1[[#This Row],[План ДВН, чел.]]","v":235},{"$f":"ROUND(Таблица1[[#This Row],[Оплачено случаев]]/Таблица1[[#This Row],[План ДВН, чел.]]*100,1)","v":131.5},null,null,2.1081923999999999E-4]
["Март","ДВН","Городская поликлиника",1338,1823.51226,630,{"$f":"Таблица1[[#This Row],[Оплачено случаев]]-Таблица1[[#This Row],[План ДВН, чел.]]","v":708},{"$f":"ROUND(Таблица1[[#This Row],[Оплачено случаев]]/Таблица1[[#This Row],[План ДВН, чел.]]*100,1)","v":212.4},null,null,5.7237540000000005E-5]
["Март","ДВН","МСЧ № 1 г. Калуги",65,90.461799999999997,10,{"$f":"Таблица1[[#This Row],[Оплачено случаев]]-Таблица1[[#This Row],[План ДВН, чел.]]","v":55},{"$f":"ROUND(Таблица1[[#This Row],[Оплачено случаев]]/Таблица1[[#This Row],[План ДВН, чел.]]*100,1)","v":650},null,null,8.8671668000000006E-4]
["Март","ДВН","МСЧ № 2 г. Калуги",0,0,1,{"$f":"Таблица1[[#This Row],[Оплачено случаев]]-Таблица1[[#This Row],[План ДВН, чел.]]","v":-1},{"$f":"ROUND(Таблица1[[#This Row],[Оплачено случаев]]/Таблица1[[#This Row],[План ДВН, чел.]]*100,1)","v":0},null,null,2.12319382E-3]
["Март","ДВН","МСЧ МВД",0,0,0,{"$f":"Таблица1[[#This Row],[Оплачено случаев]]-Таблица1[[#This Row],[План ДВН, чел.]]","v":0},{"$f":"ROUND(Таблица1[[#This Row],[Оплачено случаев]]/Таблица1[[#This Row],[План ДВН, чел.]]*100,1)","v":{"$error":"#DIV/0!"}},null,null,1.3513246399999999E-3]
["Март","ДВН","ЧУЗ \"Больница \"РЖД - Медицина\" ",40,71.9208,10,{"$f":"Таблица1[[#This Row],[Оплачено случаев]]-Таблица1[[#This Row],[План ДВН, чел.]]","v":30},{"$f":"ROUND(Таблица1[[#This Row],[Оплачено случаев]]/Таблица1[[#This Row],[План ДВН, чел.]]*100,1)","v":400},null,null,1.7957884999999999E-3]
["Март","ДВН","КБ № 8 ФМБА",749,1043.8352500000001,825,{"$f":"Таблица1[[#This Row],[Оплачено случаев]]-Таблица1[[#This Row],[План ДВН, чел.]]","v":-76},{"$f":"ROUND(Таблица1[[#This Row],[Оплачено случаев]]/Таблица1[[#This Row],[План ДВН, чел.]]*100,1)","v":90.8},null,null,0]
["Март","ДВН","ЦРБ Бабынинского района",4,7.4634399999999994,30,{"$f":"Таблица1[[#This Row],[Оплачено случаев]]-Таблица1[[#This Row],[План ДВН, чел.]]","v":-26},{"$f":"ROUND(Таблица1[[#This Row],[Оплачено случаев]]/Таблица1[[#This Row],[План ДВН, чел.]]*100,1)","v":13.3},null,null,0]
["Март","ДВН","ЦРБ Боровского района",397,652.55637999999999,319,{"$f":"Таблица1[[#This Row],[Оплачено случаев]]-Таблица1[[#This Row],[План ДВН, чел.]]","v":78},{"$f":"ROUND(Таблица1[[#This Row],[Оплачено случаев]]/Таблица1[[#This Row],[План ДВН, чел.]]*100,1)","v":124.5},null,null,0]
["Март","ДВН","ЦРБ Жуковского района",312,567.3143,240,{"$f":"Таблица1[[#This Row],[Оплачено случаев]]-Таблица1[[#This Row],[План ДВН, чел.]]","v":72},{"$f":"ROUND(Таблица1[[#This Row],[Оплачено случаев]]/Таблица1[[#This Row],[План ДВН, чел.]]*100,1)","v":130},null,null,4.1354459999999996E-5]
["Март","ДВН","ГП \"Город Кременки\"",45,62.627400000000002,50,{"$f":"Таблица1[[#This Row],[Оплачено случаев]]-Таблица1[[#This Row],[План ДВН, чел.]]","v":-5},{"$f":"ROUND(Таблица1[[#This Row],[Оплачено случаев]]/Таблица1[[#This Row],[План ДВН, чел.]]*100,1)","v":90},null,null,8.3781543999999998E-4]
["Март","ДВН","ЦРБ Малоярославецкого района",296,397.83765999999997,150,{"$f":"Таблица1[[#This Row],[Оплачено случаев]]-Таблица1[[#This Row],[План ДВН, чел.]]","v":146},{"$f":"ROUND(Таблица1[[#This Row],[Оплачено случаев]]/Таблица1[[#This Row],[План ДВН, чел.]]*100,1)","v":197.3},null,null,1.959153E-4]
["Март","ДВН","ЦРБ  Тарусского района",232,328.56871999999998,92,{"$f":"Таблица1[[#This Row],[Оплачено случаев]]-Таблица1[[#This Row],[План ДВН, чел.]]","v":140},{"$f":"ROUND(Таблица1[[#This Row],[Оплачено случаев]]/Таблица1[[#This Row],[План ДВН, чел.]]*100,1)","v":252.2},null,null,7.4074641999999997E-4]
["Апрель","ДВН","ЦМБ № 1",{"$f":"Y4","v":0},{"$f":"Z4","v":0},{"$f":"AA4","v":0},{"$f":"Таблица1[[#This Row],[Оплачено случаев]]-Таблица1[[#This Row],[План ДВН, чел.]]","v":0},{"$f":"ROUND(Таблица1[[#This Row],[Оплачено случаев]]/Таблица1[[#This Row],[План ДВН, чел.]]*100,1)","v":{"$error":"#DIV/0!"}},null,null,{"$f":"K43/1000","v":5.7841660000000003E-5}]
["Апрель","ДВН","ЦМБ № 2",0,0,0,{"$f":"Таблица1[[#This Row],[Оплачено случаев]]-Таблица1[[#This Row],[План ДВН, чел.]]","v":0},{"$f":"ROUND(Таблица1[[#This Row],[Оплачено случаев]]/Таблица1[[#This Row],[План ДВН, чел.]]*100,1)","v":{"$error":"#DIV/0!"}},null,null,{"$f":"#REF!/1000","v":{"$error":"#REF!"}}]
["Апрель","ДВН","ЦМБ № 3",0,0,0,{"$f":"Таблица1[[#This Row],[Оплачено случаев]]-Таблица1[[#This Row],[План ДВН, чел.]]","v":0},{"$f":"ROUND(Таблица1[[#This Row],[Оплачено случаев]]/Таблица1[[#This Row],[План ДВН, чел.]]*100,1)","v":{"$error":"#DIV/0!"}},null,null,{"$f":"K44/1000","v":4.5220736000000001E-4}]
["Апрель","ДВН","ЦМБ № 4",0,0,0,{"$f":"Таблица1[[#This Row],[Оплачено случаев]]-Таблица1[[#This Row],[План ДВН, чел.]]","v":0},{"$f":"ROUND(Таблица1[[#This Row],[Оплачено случаев]]/Таблица1[[#This Row],[План ДВН, чел.]]*100,1)","v":{"$error":"#DIV/0!"}},null,null,1.3082168000000001E-4]
["Апрель","ДВН","ЦМБ № 5",0,0,0,{"$f":"Таблица1[[#This Row],[Оплачено случаев]]-Таблица1[[#This Row],[План ДВН, чел.]]","v":0},{"$f":"ROUND(Таблица1[[#This Row],[Оплачено случаев]]/Таблица1[[#This Row],[План ДВН, чел.]]*100,1)","v":{"$error":"#DIV/0!"}},null,null,1.1411414719999999E-2]
["Апрель","ДВН","ЦМБ № 6",0,0,0,{"$f":"Таблица1[[#This Row],[Оплачено случаев]]-Таблица1[[#This Row],[План ДВН, чел.]]","v":0},{"$f":"ROUND(Таблица1[[#This Row],[Оплачено случаев]]/Таблица1[[#This Row],[План ДВН, чел.]]*100,1)","v":{"$error":"#DIV/0!"}},null,null,0]
["Апрель","ДВН","КГБ № 5",0,0,0,{"$f":"Таблица1[[#This Row],[Оплачено случаев]]-Таблица1[[#This Row],[План ДВН, чел.]]","v":0},{"$f":"ROUND(Таблица1[[#This Row],[Оплачено случаев]]/Таблица1[[#This Row],[План ДВН, чел.]]*100,1)","v":{"$error":"#DIV/0!"}},null,null,2.0664130000000001E-7]
["Апрель","ДВН","КГКБ № 4",0,0,0,{"$f":"Таблица1[[#This Row],[Оплачено случаев]]-Таблица1[[#This Row],[План ДВН, чел.]]","v":0},{"$f":"ROUND(Таблица1[[#This Row],[Оплачено случаев]]/Таблица1[[#This Row],[План ДВН, чел.]]*100,1)","v":{"$error":"#DIV/0!"}},null,null,1.5186743600000001E-6]
["Апрель","ДВН","Городская поликлиника",0,0,0,{"$f":"Таблица1[[#This Row],[Оплачено случаев]]-Таблица1[[#This Row],[План ДВН, чел.]]","v":0},{"$f":"ROUND(Таблица1[[#This Row],[Оплачено случаев]]/Таблица1[[#This Row],[План ДВН, чел.]]*100,1)","v":{"$error":"#DIV/0!"}},null,null,4.3683399999999998E-7]
["Апрель","ДВН","МСЧ № 1 г. Калуги",0,0,0,{"$f":"Таблица1[[#This Row],[Оплачено случаев]]-Таблица1[[#This Row],[План ДВН, чел.]]","v":0},{"$f":"ROUND(Таблица1[[#This Row],[Оплачено случаев]]/Таблица1[[#This Row],[План ДВН, чел.]]*100,1)","v":{"$error":"#DIV/0!"}},null,null,2.1081924E-7]
["Апрель","ДВН","МСЧ № 2 г. Калуги",0,0,0,{"$f":"Таблица1[[#This Row],[Оплачено случаев]]-Таблица1[[#This Row],[План ДВН, чел.]]","v":0},{"$f":"ROUND(Таблица1[[#This Row],[Оплачено случаев]]/Таблица1[[#This Row],[План ДВН, чел.]]*100,1)","v":{"$error":"#DIV/0!"}},null,null,5.7237540000000005E-8]
["Апрель","ДВН","МСЧ МВД",0,0,0,{"$f":"Таблица1[[#This Row],[Оплачено случаев]]-Таблица1[[#This Row],[План ДВН, чел.]]","v":0},{"$f":"ROUND(Таблица1[[#This Row],[Оплачено случаев]]/Таблица1[[#This Row],[План ДВН, чел.]]*100,1)","v":{"$error":"#DIV/0!"}},null,null,8.8671668000000007E-7]
["Апрель","ДВН","ЧУЗ \"Больница \"РЖД - Медицина\" ",0,0,0,{"$f":"Таблица1[[#This Row],[Оплачено случаев]]-Таблица1[[#This Row],[План ДВН, чел.]]","v":0},{"$f":"ROUND(Таблица1[[#This Row],[Оплачено случаев]]/Таблица1[[#This Row],[План ДВН, чел.]]*100,1)","v":{"$error":"#DIV/0!"}},null,null,2.1231938199999999E-6]
["Апрель","ДВН","КБ № 8 ФМБА",0,0,0,{"$f":"Таблица1[[#This Row],[Оплачено случаев]]-Таблица1[[#This Row],[План ДВН, чел.]]","v":0},{"$f":"ROUND(Таблица1[[#This Row],[Оплачено случаев]]/Таблица1[[#This Row],[План ДВН, чел.]]*100,1)","v":{"$error":"#DIV/0!"}},null,null,1.3513246399999999E-6]
["Апрель","ДВН","ЦРБ Бабынинского района",0,0,0,{"$f":"Таблица1[[#This Row],[Оплачено случаев]]-Таблица1[[#This Row],[План ДВН, чел.]]","v":0},{"$f":"ROUND(Таблица1[[#This Row],[Оплачено случаев]]/Таблица1[[#This Row],[План ДВН, чел.]]*100,1)","v":{"$error":"#DIV/0!"}},null,null,1.7957885E-6]
["Апрель","ДВН","ЦРБ Боровского района",0,0,0,{"$f":"Таблица1[[#This Row],[Оплачено случаев]]-Таблица1[[#This Row],[План ДВН, чел.]]","v":0},{"$f":"ROUND(Таблица1[[#This Row],[Оплачено случаев]]/Таблица1[[#This Row],[План ДВН, чел.]]*100,1)","v":{"$error":"#DIV/0!"}},null,null,0]
["Апрель","ДВН","ЦРБ Жуковского района",0,0,0,{"$f":"Таблица1[[#This Row],[Оплачено случаев]]-Таблица1[[#This Row],[План ДВН, чел.]]","v":0},{"$f":"ROUND(Таблица1[[#This Row],[Оплачено случаев]]/Таблица1[[#This Row],[План ДВН, чел.]]*100,1)","v":{"$error":"#DIV/0!"}},null,null,0]
["Апрель","ДВН","ГП \"Город Кременки\"",0,0,0,{"$f":"Таблица1[[#This Row],[Оплачено случаев]]-Таблица1[[#This Row],[План ДВН, чел.]]","v":0},{"$f":"ROUND(Таблица1[[#This Row],[Оплачено случаев]]/Таблица1[[#This Row],[План ДВН, чел.]]*100,1)","v":{"$error":"#DIV/0!"}},null,null,0]
["Апрель","ДВН","ЦРБ Малоярославецкого района",0,0,0,{"$f":"Таблица1[[#This Row],[Оплачено случаев]]-Таблица1[[#This Row],[План ДВН, чел.]]","v":0},{"$f":"ROUND(Таблица1[[#This Row],[Оплачено случаев]]/Таблица1[[#This Row],[План ДВН, чел.]]*100,1)","v":{"$error":"#DIV/0!"}},null,null,4.1354459999999995E-8]
["Апрель","ДВН","ЦРБ  Тарусского района",0,0,0,{"$f":"Таблица1[[#This Row],[Оплачено случаев]]-Таблица1[[#This Row],[План ДВН, чел.]]","v":0},{"$f":"ROUND(Таблица1[[#This Row],[Оплачено случаев]]/Таблица1[[#This Row],[План ДВН, чел.]]*100,1)","v":{"$error":"#DIV/0!"}},null,null,8.3781543999999994E-7]
["Май","ДВН","ЦМБ № 1",{"$f":"AD4","v":0},{"$f":"AE4","v":0},{"$f":"AF4","v":0},{"$f":"Таблица1[[#This Row],[Оплачено случаев]]-Таблица1[[#This Row],[План ДВН, чел.]]","v":0},{"$f":"ROUND(Таблица1[[#This Row],[Оплачено случаев]]/Таблица1[[#This Row],[План ДВН, чел.]]*100,1)","v":{"$error":"#DIV/0!"}},null,null,{"$f":"K63/1000","v":7.4074642E-7}]
["Май","ДВН","ЦМБ № 2",0,0,0,{"$f":"Таблица1[[#This Row],[Оплачено случаев]]-Таблица1[[#This Row],[План ДВН, чел.]]","v":0},{"$f":"ROUND(Таблица1[[#This Row],[Оплачено случаев]]/Таблица1[[#This Row],[План ДВН, чел.]]*100,1)","v":{"$error":"#DIV/0!"}},null,null,{"$f":"#REF!/1000","v":{"$error":"#REF!"}}]
["Май","ДВН","ЦМБ № 3",0,0,0,{"$f":"Таблица1[[#This Row],[Оплачено случаев]]-Таблица1[[#This Row],[План ДВН, чел.]]","v":0},{"$f":"ROUND(Таблица1[[#This Row],[Оплачено случаев]]/Таблица1[[#This Row],[План ДВН, чел.]]*100,1)","v":{"$error":"#DIV/0!"}},null,null,{"$f":"K64/1000","v":5.784166E-8}]
["Май","ДВН","ЦМБ № 4",0,0,0,{"$f":"Таблица1[[#This Row],[Оплачено случаев]]-Таблица1[[#This Row],[План ДВН, чел.]]","v":0},{"$f":"ROUND(Таблица1[[#This Row],[Оплачено случаев]]/Таблица1[[#This Row],[План ДВН, чел.]]*100,1)","v":{"$error":"#DIV/0!"}},null,null,{"$error":"#REF!"}]
["Май","ДВН","ЦМБ № 5",0,0,0,{"$f":"Таблица1[[#This Row],[Оплачено случаев]]-Таблица1[[#This Row],[План ДВН, чел.]]","v":0},{"$f":"ROUND(Таблица1[[#This Row],[Оплачено случаев]]/Таблица1[[#This Row],[План ДВН, чел.]]*100,1)","v":{"$error":"#DIV/0!"}},null,null,4.5220736E-7]
["Май","ДВН","ЦМБ № 6",0,0,0,{"$f":"Таблица1[[#This Row],[Оплачено случаев]]-Таблица1[[#This Row],[План ДВН, чел.]]","v":0},{"$f":"ROUND(Таблица1[[#This Row],[Оплачено случаев]]/Таблица1[[#This Row],[План ДВН, чел.]]*100,1)","v":{"$error":"#DIV/0!"}},null,null,1.3082168000000001E-7]
["Май","ДВН","КГБ № 5",0,0,0,{"$f":"Таблица1[[#This Row],[Оплачено случаев]]-Таблица1[[#This Row],[План ДВН, чел.]]","v":0},{"$f":"ROUND(Таблица1[[#This Row],[Оплачено случаев]]/Таблица1[[#This Row],[План ДВН, чел.]]*100,1)","v":{"$error":"#DIV/0!"}},null,null,1.1411414719999998E-5]
["Май","ДВН","КГКБ № 4",0,0,0,{"$f":"Таблица1[[#This Row],[Оплачено случаев]]-Таблица1[[#This Row],[План ДВН, чел.]]","v":0},{"$f":"ROUND(Таблица1[[#This Row],[Оплачено случаев]]/Таблица1[[#This Row],[План ДВН, чел.]]*100,1)","v":{"$error":"#DIV/0!"}},null,null,0]
["Май","ДВН","Городская поликлиника",0,0,0,{"$f":"Таблица1[[#This Row],[Оплачено случаев]]-Таблица1[[#This Row],[План ДВН, чел.]]","v":0},{"$f":"ROUND(Таблица1[[#This Row],[Оплачено случаев]]/Таблица1[[#This Row],[План ДВН, чел.]]*100,1)","v":{"$error":"#DIV/0!"}},null,null,2.066413E-10]
["Май","ДВН","МСЧ № 1 г. Калуги",0,0,0,{"$f":"Таблица1[[#This Row],[Оплачено случаев]]-Таблица1[[#This Row],[План ДВН, чел.]]","v":0},{"$f":"ROUND(Таблица1[[#This Row],[Оплачено случаев]]/Таблица1[[#This Row],[План ДВН, чел.]]*100,1)","v":{"$error":"#DIV/0!"}},null,null,1.5186743600000001E-9]
["Май","ДВН","МСЧ № 2 г. Калуги",0,0,0,{"$f":"Таблица1[[#This Row],[Оплачено случаев]]-Таблица1[[#This Row],[План ДВН, чел.]]","v":0},{"$f":"ROUND(Таблица1[[#This Row],[Оплачено случаев]]/Таблица1[[#This Row],[План ДВН, чел.]]*100,1)","v":{"$error":"#DIV/0!"}},null,null,4.3683399999999996E-10]
["Май","ДВН","МСЧ МВД",0,0,0,{"$f":"Таблица1[[#This Row],[Оплачено случаев]]-Таблица1[[#This Row],[План ДВН, чел.]]","v":0},{"$f":"ROUND(Таблица1[[#This Row],[Оплачено случаев]]/Таблица1[[#This Row],[План ДВН, чел.]]*100,1)","v":{"$error":"#DIV/0!"}},null,null,2.1081924E-10]
["Май","ДВН","ЧУЗ \"Больница \"РЖД - Медицина\" ",0,0,0,{"$f":"Таблица1[[#This Row],[Оплачено случаев]]-Таблица1[[#This Row],[План ДВН, чел.]]","v":0},{"$f":"ROUND(Таблица1[[#This Row],[Оплачено случаев]]/Таблица1[[#This Row],[План ДВН, чел.]]*100,1)","v":{"$error":"#DIV/0!"}},null,null,5.7237540000000003E-11]
["Май","ДВН","КБ № 8 ФМБА",0,0,0,{"$f":"Таблица1[[#This Row],[Оплачено случаев]]-Таблица1[[#This Row],[План ДВН, чел.]]","v":0},{"$f":"ROUND(Таблица1[[#This Row],[Оплачено случаев]]/Таблица1[[#This Row],[План ДВН, чел.]]*100,1)","v":{"$error":"#DIV/0!"}},null,null,8.8671668000000011E-10]
["Май","ДВН","ЦРБ Бабынинского района",0,0,0,{"$f":"Таблица1[[#This Row],[Оплачено случаев]]-Таблица1[[#This Row],[План ДВН, чел.]]","v":0},{"$f":"ROUND(Таблица1[[#This Row],[Оплачено случаев]]/Таблица1[[#This Row],[План ДВН, чел.]]*100,1)","v":{"$error":"#DIV/0!"}},null,null,2.12319382E-9]
["Май","ДВН","ЦРБ Боровского района",0,0,0,{"$f":"Таблица1[[#This Row],[Оплачено случаев]]-Таблица1[[#This Row],[План ДВН, чел.]]","v":0},{"$f":"ROUND(Таблица1[[#This Row],[Оплачено случаев]]/Таблица1[[#This Row],[План ДВН, чел.]]*100,1)","v":{"$error":"#DIV/0!"}},null,null,1.3513246399999998E-9]
["Май","ДВН","ЦРБ Жуковского района",0,0,0,{"$f":"Таблица1[[#This Row],[Оплачено случаев]]-Таблица1[[#This Row],[План ДВН, чел.]]","v":0},{"$f":"ROUND(Таблица1[[#This Row],[Оплачено случаев]]/Таблица1[[#This Row],[План ДВН, чел.]]*100,1)","v":{"$error":"#DIV/0!"}},null,null,1.7957885E-9]
["Май","ДВН","ГП \"Город Кременки\"",0,0,0,{"$f":"Таблица1[[#This Row],[Оплачено случаев]]-Таблица1[[#This Row],[План ДВН, чел.]]","v":0},{"$f":"ROUND(Таблица1[[#This Row],[Оплачено случаев]]/Таблица1[[#This Row],[План ДВН, чел.]]*100,1)","v":{"$error":"#DIV/0!"}},null,null,0]
["Май","ДВН","ЦРБ Малоярославецкого района",0,0,0,{"$f":"Таблица1[[#This Row],[Оплачено случаев]]-Таблица1[[#This Row],[План ДВН, чел.]]","v":0},{"$f":"ROUND(Таблица1[[#This Row],[Оплачено случаев]]/Таблица1[[#This Row],[План ДВН, чел.]]*100,1)","v":{"$error":"#DIV/0!"}},null,null,0]
["Май","ДВН","ЦРБ  Тарусского района",0,0,0,{"$f":"Таблица1[[#This Row],[Оплачено случаев]]-Таблица1[[#This Row],[План ДВН, чел.]]","v":0},{"$f":"ROUND(Таблица1[[#This Row],[Оплачено случаев]]/Таблица1[[#This Row],[План ДВН, чел.]]*100,1)","v":{"$error":"#DIV/0!"}},null,null,0]
["Июнь","ДВН","ЦМБ № 1",{"$f":"AI4","v":0},{"$f":"AJ4","v":0},{"$f":"AK4","v":0},{"$f":"Таблица1[[#This Row],[Оплачено случаев]]-Таблица1[[#This Row],[План ДВН, чел.]]","v":0},{"$f":"ROUND(Таблица1[[#This Row],[Оплачено случаев]]/Таблица1[[#This Row],[План ДВН, чел.]]*100,1)","v":{"$error":"#DIV/0!"}},null,null,{"$f":"K83/1000","v":8.3781543999999996E-10}]
["Июнь","ДВН","ЦМБ № 2",0,0,0,{"$f":"Таблица1[[#This Row],[Оплачено случаев]]-Таблица1[[#This Row],[План ДВН, чел.]]","v":0},{"$f":"ROUND(Таблица1[[#This Row],[Оплачено случаев]]/Таблица1[[#This Row],[План ДВН, чел.]]*100,1)","v":{"$error":"#DIV/0!"}},null,null,{"$f":"#REF!/1000","v":{"$error":"#REF!"}}]
["Июнь","ДВН","ЦМБ № 3",0,0,0,{"$f":"Таблица1[[#This Row],[Оплачено случаев]]-Таблица1[[#This Row],[План ДВН, чел.]]","v":0},{"$f":"ROUND(Таблица1[[#This Row],[Оплачено случаев]]/Таблица1[[#This Row],[План ДВН, чел.]]*100,1)","v":{"$error":"#DIV/0!"}},null,null,{"$f":"K84/1000","v":7.4074642000000003E-10}]
["Июнь","ДВН","ЦМБ № 4",0,0,0,{"$f":"Таблица1[[#This Row],[Оплачено случаев]]-Таблица1[[#This Row],[План ДВН, чел.]]","v":0},{"$f":"ROUND(Таблица1[[#This Row],[Оплачено случаев]]/Таблица1[[#This Row],[План ДВН, чел.]]*100,1)","v":{"$error":"#DIV/0!"}},null,null,{"$error":"#REF!"}]
["Июнь","ДВН","ЦМБ № 5",0,0,0,{"$f":"Таблица1[[#This Row],[Оплачено случаев]]-Таблица1[[#This Row],[План ДВН, чел.]]","v":0},{"$f":"ROUND(Таблица1[[#This Row],[Оплачено случаев]]/Таблица1[[#This Row],[План ДВН, чел.]]*100,1)","v":{"$error":"#DIV/0!"}},null,null,5.7841659999999999E-11]
["Июнь","ДВН","ЦМБ № 6",0,0,0,{"$f":"Таблица1[[#This Row],[Оплачено случаев]]-Таблица1[[#This Row],[План ДВН, чел.]]","v":0},{"$f":"ROUND(Таблица1[[#This Row],[Оплачено случаев]]/Таблица1[[#This Row],[План ДВН, чел.]]*100,1)","v":{"$error":"#DIV/0!"}},null,null,{"$error":"#REF!"}]
["Июнь","ДВН","КГБ № 5",0,0,0,{"$f":"Таблица1[[#This Row],[Оплачено случаев]]-Таблица1[[#This Row],[План ДВН, чел.]]","v":0},{"$f":"ROUND(Таблица1[[#This Row],[Оплачено случаев]]/Таблица1[[#This Row],[План ДВН, чел.]]*100,1)","v":{"$error":"#DIV/0!"}},null,null,4.5220736000000001E-10]
["Июнь","ДВН","КГКБ № 4",0,0,0,{"$f":"Таблица1[[#This Row],[Оплачено случаев]]-Таблица1[[#This Row],[План ДВН, чел.]]","v":0},{"$f":"ROUND(Таблица1[[#This Row],[Оплачено случаев]]/Таблица1[[#This Row],[План ДВН, чел.]]*100,1)","v":{"$error":"#DIV/0!"}},null,null,1.3082168000000001E-10]
["Июнь","ДВН","Городская поликлиника",0,0,0,{"$f":"Таблица1[[#This Row],[Оплачено случаев]]-Таблица1[[#This Row],[План ДВН, чел.]]","v":0},{"$f":"ROUND(Таблица1[[#This Row],[Оплачено случаев]]/Таблица1[[#This Row],[План ДВН, чел.]]*100,1)","v":{"$error":"#DIV/0!"}},null,null,1.1411414719999998E-8]
["Июнь","ДВН","МСЧ № 1 г. Калуги",0,0,0,{"$f":"Таблица1[[#This Row],[Оплачено случаев]]-Таблица1[[#This Row],[План ДВН, чел.]]","v":0},{"$f":"ROUND(Таблица1[[#This Row],[Оплачено случаев]]/Таблица1[[#This Row],[План ДВН, чел.]]*100,1)","v":{"$error":"#DIV/0!"}},null,null,0]
["Июнь","ДВН","МСЧ № 2 г. Калуги",0,0,0,{"$f":"Таблица1[[#This Row],[Оплачено случаев]]-Таблица1[[#This Row],[План ДВН, чел.]]","v":0},{"$f":"ROUND(Таблица1[[#This Row],[Оплачено случаев]]/Таблица1[[#This Row],[План ДВН, чел.]]*100,1)","v":{"$error":"#DIV/0!"}},null,null,2.0664130000000001E-13]
["Июнь","ДВН","МСЧ МВД",0,0,0,{"$f":"Таблица1[[#This Row],[Оплачено случаев]]-Таблица1[[#This Row],[План ДВН, чел.]]","v":0},{"$f":"ROUND(Таблица1[[#This Row],[Оплачено случаев]]/Таблица1[[#This Row],[План ДВН, чел.]]*100,1)","v":{"$error":"#DIV/0!"}},null,null,1.51867436E-12]
["Июнь","ДВН","ЧУЗ \"Больница \"РЖД - Медицина\" ",0,0,0,{"$f":"Таблица1[[#This Row],[Оплачено случаев]]-Таблица1[[#This Row],[План ДВН, чел.]]","v":0},{"$f":"ROUND(Таблица1[[#This Row],[Оплачено случаев]]/Таблица1[[#This Row],[План ДВН, чел.]]*100,1)","v":{"$error":"#DIV/0!"}},null,null,4.3683399999999995E-13]
["Июнь","ДВН","КБ № 8 ФМБА",0,0,0,{"$f":"Таблица1[[#This Row],[Оплачено случаев]]-Таблица1[[#This Row],[План ДВН, чел.]]","v":0},{"$f":"ROUND(Таблица1[[#This Row],[Оплачено случаев]]/Таблица1[[#This Row],[План ДВН, чел.]]*100,1)","v":{"$error":"#DIV/0!"}},null,null,2.1081924000000002E-13]
["Июнь","ДВН","ЦРБ Бабынинского района",0,0,0,{"$f":"Таблица1[[#This Row],[Оплачено случаев]]-Таблица1[[#This Row],[План ДВН, чел.]]","v":0},{"$f":"ROUND(Таблица1[[#This Row],[Оплачено случаев]]/Таблица1[[#This Row],[План ДВН, чел.]]*100,1)","v":{"$error":"#DIV/0!"}},null,null,5.7237540000000005E-14]
["Июнь","ДВН","ЦРБ Боровского района",0,0,0,{"$f":"Таблица1[[#This Row],[Оплачено случаев]]-Таблица1[[#This Row],[План ДВН, чел.]]","v":0},{"$f":"ROUND(Таблица1[[#This Row],[Оплачено случаев]]/Таблица1[[#This Row],[План ДВН, чел.]]*100,1)","v":{"$error":"#DIV/0!"}},null,null,8.8671668000000013E-13]
["Июнь","ДВН","ЦРБ Жуковского района",0,0,0,{"$f":"Таблица1[[#This Row],[Оплачено случаев]]-Таблица1[[#This Row],[План ДВН, чел.]]","v":0},{"$f":"ROUND(Таблица1[[#This Row],[Оплачено случаев]]/Таблица1[[#This Row],[План ДВН, чел.]]*100,1)","v":{"$error":"#DIV/0!"}},null,null,2.1231938199999999E-12]
["Июнь","ДВН","ГП \"Город Кременки\"",0,0,0,{"$f":"Таблица1[[#This Row],[Оплачено случаев]]-Таблица1[[#This Row],[План ДВН, чел.]]","v":0},{"$f":"ROUND(Таблица1[[#This Row],[Оплачено случаев]]/Таблица1[[#This Row],[План ДВН, чел.]]*100,1)","v":{"$error":"#DIV/0!"}},null,null,1.3513246399999999E-12]
["Июнь","ДВН","ЦРБ Малоярославецкого района",0,0,0,{"$f":"Таблица1[[#This Row],[Оплачено случаев]]-Таблица1[[#This Row],[План ДВН, чел.]]","v":0},{"$f":"ROUND(Таблица1[[#This Row],[Оплачено случаев]]/Таблица1[[#This Row],[План ДВН, чел.]]*100,1)","v":{"$error":"#DIV/0!"}},null,null,1.7957884999999999E-12]
["Июнь","ДВН","ЦРБ  Тарусского района",0,0,0,{"$f":"Таблица1[[#This Row],[Оплачено случаев]]-Таблица1[[#This Row],[План ДВН, чел.]]","v":0},{"$f":"ROUND(Таблица1[[#This Row],[Оплачено случаев]]/Таблица1[[#This Row],[План ДВН, чел.]]*100,1)","v":{"$error":"#DIV/0!"}},null,null,0]
["Июль","ДВН","ЦМБ № 1",{"$f":"AN4","v":0},{"$f":"AO4","v":0},{"$f":"AP4","v":0},{"$f":"Таблица1[[#This Row],[Оплачено случаев]]-Таблица1[[#This Row],[План ДВН, чел.]]","v":0},{"$f":"ROUND(Таблица1[[#This Row],[Оплачено случаев]]/Таблица1[[#This Row],[План ДВН, чел.]]*100,1)","v":{"$error":"#DIV/0!"}},null,null,{"$f":"K103/1000","v":0}]
["Июль","ДВН","ЦМБ № 2",0,0,0,{"$f":"Таблица1[[#This Row],[Оплачено случаев]]-Таблица1[[#This Row],[План ДВН, чел.]]","v":0},{"$f":"ROUND(Таблица1[[#This Row],[Оплачено случаев]]/Таблица1[[#This Row],[План ДВН, чел.]]*100,1)","v":{"$error":"#DIV/0!"}},null,null,{"$f":"#REF!/1000","v":{"$error":"#REF!"}}]
["Июль","ДВН","ЦМБ № 3",0,0,0,{"$f":"Таблица1[[#This Row],[Оплачено случаев]]-Таблица1[[#This Row],[План ДВН, чел.]]","v":0},{"$f":"ROUND(Таблица1[[#This Row],[Оплачено случаев]]/Таблица1[[#This Row],[План ДВН, чел.]]*100,1)","v":{"$error":"#DIV/0!"}},null,null,{"$f":"K104/1000","v":8.3781543999999997E-13}]
["Июль","ДВН","ЦМБ № 4",0,0,0,{"$f":"Таблица1[[#This Row],[Оплачено случаев]]-Таблица1[[#This Row],[План ДВН, чел.]]","v":0},{"$f":"ROUND(Таблица1[[#This Row],[Оплачено случаев]]/Таблица1[[#This Row],[План ДВН, чел.]]*100,1)","v":{"$error":"#DIV/0!"}},null,null,{"$error":"#REF!"}]
["Июль","ДВН","ЦМБ № 5",0,0,0,{"$f":"Таблица1[[#This Row],[Оплачено случаев]]-Таблица1[[#This Row],[План ДВН, чел.]]","v":0},{"$f":"ROUND(Таблица1[[#This Row],[Оплачено случаев]]/Таблица1[[#This Row],[План ДВН, чел.]]*100,1)","v":{"$error":"#DIV/0!"}},null,null,7.4074642000000006E-13]
["Июль","ДВН","ЦМБ № 6",0,0,0,{"$f":"Таблица1[[#This Row],[Оплачено случаев]]-Таблица1[[#This Row],[План ДВН, чел.]]","v":0},{"$f":"ROUND(Таблица1[[#This Row],[Оплачено случаев]]/Таблица1[[#This Row],[План ДВН, чел.]]*100,1)","v":{"$error":"#DIV/0!"}},null,null,{"$error":"#REF!"}]
["Июль","ДВН","КГБ № 5",0,0,0,{"$f":"Таблица1[[#This Row],[Оплачено случаев]]-Таблица1[[#This Row],[План ДВН, чел.]]","v":0},{"$f":"ROUND(Таблица1[[#This Row],[Оплачено случаев]]/Таблица1[[#This Row],[План ДВН, чел.]]*100,1)","v":{"$error":"#DIV/0!"}},null,null,5.784166E-14]
["Июль","ДВН","КГКБ № 4",0,0,0,{"$f":"Таблица1[[#This Row],[Оплачено случаев]]-Таблица1[[#This Row],[План ДВН, чел.]]","v":0},{"$f":"ROUND(Таблица1[[#This Row],[Оплачено случаев]]/Таблица1[[#This Row],[План ДВН, чел.]]*100,1)","v":{"$error":"#DIV/0!"}},null,null,{"$error":"#REF!"}]
["Июль","ДВН","Городская поликлиника",0,0,0,{"$f":"Таблица1[[#This Row],[Оплачено случаев]]-Таблица1[[#This Row],[План ДВН, чел.]]","v":0},{"$f":"ROUND(Таблица1[[#This Row],[Оплачено случаев]]/Таблица1[[#This Row],[План ДВН, чел.]]*100,1)","v":{"$error":"#DIV/0!"}},null,null,4.5220736000000002E-13]
["Июль","ДВН","МСЧ № 1 г. Калуги",0,0,0,{"$f":"Таблица1[[#This Row],[Оплачено случаев]]-Таблица1[[#This Row],[План ДВН, чел.]]","v":0},{"$f":"ROUND(Таблица1[[#This Row],[Оплачено случаев]]/Таблица1[[#This Row],[План ДВН, чел.]]*100,1)","v":{"$error":"#DIV/0!"}},null,null,1.3082168000000002E-13]
["Июль","ДВН","МСЧ № 2 г. Калуги",0,0,0,{"$f":"Таблица1[[#This Row],[Оплачено случаев]]-Таблица1[[#This Row],[План ДВН, чел.]]","v":0},{"$f":"ROUND(Таблица1[[#This Row],[Оплачено случаев]]/Таблица1[[#This Row],[План ДВН, чел.]]*100,1)","v":{"$error":"#DIV/0!"}},null,null,1.1411414719999998E-11]
["Июль","ДВН","МСЧ МВД",0,0,0,{"$f":"Таблица1[[#This Row],[Оплачено случаев]]-Таблица1[[#This Row],[План ДВН, чел.]]","v":0},{"$f":"ROUND(Таблица1[[#This Row],[Оплачено случаев]]/Таблица1[[#This Row],[План ДВН, чел.]]*100,1)","v":{"$error":"#DIV/0!"}},null,null,0]
["Июль","ДВН","ЧУЗ \"Больница \"РЖД - Медицина\" ",0,0,0,{"$f":"Таблица1[[#This Row],[Оплачено случаев]]-Таблица1[[#This Row],[План ДВН, чел.]]","v":0},{"$f":"ROUND(Таблица1[[#This Row],[Оплачено случаев]]/Таблица1[[#This Row],[План ДВН, чел.]]*100,1)","v":{"$error":"#DIV/0!"}},null,null,2.066413E-16]
["Июль","ДВН","КБ № 8 ФМБА",0,0,0,{"$f":"Таблица1[[#This Row],[Оплачено случаев]]-Таблица1[[#This Row],[План ДВН, чел.]]","v":0},{"$f":"ROUND(Таблица1[[#This Row],[Оплачено случаев]]/Таблица1[[#This Row],[План ДВН, чел.]]*100,1)","v":{"$error":"#DIV/0!"}},null,null,1.5186743600000001E-15]
["Июль","ДВН","ЦРБ Бабынинского района",0,0,0,{"$f":"Таблица1[[#This Row],[Оплачено случаев]]-Таблица1[[#This Row],[План ДВН, чел.]]","v":0},{"$f":"ROUND(Таблица1[[#This Row],[Оплачено случаев]]/Таблица1[[#This Row],[План ДВН, чел.]]*100,1)","v":{"$error":"#DIV/0!"}},null,null,4.3683399999999996E-16]
["Июль","ДВН","ЦРБ Боровского района",0,0,0,{"$f":"Таблица1[[#This Row],[Оплачено случаев]]-Таблица1[[#This Row],[План ДВН, чел.]]","v":0},{"$f":"ROUND(Таблица1[[#This Row],[Оплачено случаев]]/Таблица1[[#This Row],[План ДВН, чел.]]*100,1)","v":{"$error":"#DIV/0!"}},null,null,2.1081924000000001E-16]
["Июль","ДВН","ЦРБ Жуковского района",0,0,0,{"$f":"Таблица1[[#This Row],[Оплачено случаев]]-Таблица1[[#This Row],[План ДВН, чел.]]","v":0},{"$f":"ROUND(Таблица1[[#This Row],[Оплачено случаев]]/Таблица1[[#This Row],[План ДВН, чел.]]*100,1)","v":{"$error":"#DIV/0!"}},null,null,5.7237540000000006E-17]
["Июль","ДВН","ГП \"Город Кременки\"",0,0,0,{"$f":"Таблица1[[#This Row],[Оплачено случаев]]-Таблица1[[#This Row],[План ДВН, чел.]]","v":0},{"$f":"ROUND(Таблица1[[#This Row],[Оплачено случаев]]/Таблица1[[#This Row],[План ДВН, чел.]]*100,1)","v":{"$error":"#DIV/0!"}},null,null,8.8671668000000014E-16]
["Июль","ДВН","ЦРБ Малоярославецкого района",0,0,0,{"$f":"Таблица1[[#This Row],[Оплачено случаев]]-Таблица1[[#This Row],[План ДВН, чел.]]","v":0},{"$f":"ROUND(Таблица1[[#This Row],[Оплачено случаев]]/Таблица1[[#This Row],[План ДВН, чел.]]*100,1)","v":{"$error":"#DIV/0!"}},null,null,2.1231938199999998E-15]
["Июль","ДВН","ЦРБ  Тарусского района",0,0,0,{"$f":"Таблица1[[#This Row],[Оплачено случаев]]-Таблица1[[#This Row],[План ДВН, чел.]]","v":0},{"$f":"ROUND(Таблица1[[#This Row],[Оплачено случаев]]/Таблица1[[#This Row],[План ДВН, чел.]]*100,1)","v":{"$error":"#DIV/0!"}},null,null,1.35132464E-15]
["Август","ДВН","ЦМБ № 1",{"$f":"AS4","v":0},{"$f":"AT4","v":0},{"$f":"AU4","v":0},{"$f":"Таблица1[[#This Row],[Оплачено случаев]]-Таблица1[[#This Row],[План ДВН, чел.]]","v":0},{"$f":"ROUND(Таблица1[[#This Row],[Оплачено случаев]]/Таблица1[[#This Row],[План ДВН, чел.]]*100,1)","v":{"$error":"#DIV/0!"}}]
["Август","ДВН","ЦМБ № 2",0,0,0,{"$f":"Таблица1[[#This Row],[Оплачено случаев]]-Таблица1[[#This Row],[План ДВН, чел.]]","v":0},{"$f":"ROUND(Таблица1[[#This Row],[Оплачено случаев]]/Таблица1[[#This Row],[План ДВН, чел.]]*100,1)","v":{"$error":"#DIV/0!"}}]
["Август","ДВН","ЦМБ № 3",0,0,0,{"$f":"Таблица1[[#This Row],[Оплачено случаев]]-Таблица1[[#This Row],[План ДВН, чел.]]","v":0},{"$f":"ROUND(Таблица1[[#This Row],[Оплачено случаев]]/Таблица1[[#This Row],[План ДВН, чел.]]*100,1)","v":{"$error":"#DIV/0!"}}]
["Август","ДВН","ЦМБ № 4",0,0,0,{"$f":"Таблица1[[#This Row],[Оплачено случаев]]-Таблица1[[#This Row],[План ДВН, чел.]]","v":0},{"$f":"ROUND(Таблица1[[#This Row],[Оплачено случаев]]/Таблица1[[#This Row],[План ДВН, чел.]]*100,1)","v":{"$error":"#DIV/0!"}}]
["Август","ДВН","ЦМБ № 5",0,0,0,{"$f":"Таблица1[[#This Row],[Оплачено случаев]]-Таблица1[[#This Row],[План ДВН, чел.]]","v":0},{"$f":"ROUND(Таблица1[[#This Row],[Оплачено случаев]]/Таблица1[[#This Row],[План ДВН, чел.]]*100,1)","v":{"$error":"#DIV/0!"}}]
["Август","ДВН","ЦМБ № 6",0,0,0,{"$f":"Таблица1[[#This Row],[Оплачено случаев]]-Таблица1[[#This Row],[План ДВН, чел.]]","v":0},{"$f":"ROUND(Таблица1[[#This Row],[Оплачено случаев]]/Таблица1[[#This Row],[План ДВН, чел.]]*100,1)","v":{"$error":"#DIV/0!"}}]
["Август","ДВН","КГБ № 5",0,0,0,{"$f":"Таблица1[[#This Row],[Оплачено случаев]]-Таблица1[[#This Row],[План ДВН, чел.]]","v":0},{"$f":"ROUND(Таблица1[[#This Row],[Оплачено случаев]]/Таблица1[[#This Row],[План ДВН, чел.]]*100,1)","v":{"$error":"#DIV/0!"}}]
["Август","ДВН","КГКБ № 4",0,0,0,{"$f":"Таблица1[[#This Row],[Оплачено случаев]]-Таблица1[[#This Row],[План ДВН, чел.]]","v":0},{"$f":"ROUND(Таблица1[[#This Row],[Оплачено случаев]]/Таблица1[[#This Row],[План ДВН, чел.]]*100,1)","v":{"$error":"#DIV/0!"}}]
["Август","ДВН","Городская поликлиника",0,0,0,{"$f":"Таблица1[[#This Row],[Оплачено случаев]]-Таблица1[[#This Row],[План ДВН, чел.]]","v":0},{"$f":"ROUND(Таблица1[[#This Row],[Оплачено случаев]]/Таблица1[[#This Row],[План ДВН, чел.]]*100,1)","v":{"$error":"#DIV/0!"}}]
["Август","ДВН","МСЧ № 1 г. Калуги",0,0,0,{"$f":"Таблица1[[#This Row],[Оплачено случаев]]-Таблица1[[#This Row],[План ДВН, чел.]]","v":0},{"$f":"ROUND(Таблица1[[#This Row],[Оплачено случаев]]/Таблица1[[#This Row],[План ДВН, чел.]]*100,1)","v":{"$error":"#DIV/0!"}}]
["Август","ДВН","МСЧ № 2 г. Калуги",0,0,0,{"$f":"Таблица1[[#This Row],[Оплачено случаев]]-Таблица1[[#This Row],[План ДВН, чел.]]","v":0},{"$f":"ROUND(Таблица1[[#This Row],[Оплачено случаев]]/Таблица1[[#This Row],[План ДВН, чел.]]*100,1)","v":{"$error":"#DIV/0!"}}]
["Август","ДВН","МСЧ МВД",0,0,0,{"$f":"Таблица1[[#This Row],[Оплачено случаев]]-Таблица1[[#This Row],[План ДВН, чел.]]","v":0},{"$f":"ROUND(Таблица1[[#This Row],[Оплачено случаев]]/Таблица1[[#This Row],[План ДВН, чел.]]*100,1)","v":{"$error":"#DIV/0!"}}]
["Август","ДВН","ЧУЗ \"Больница \"РЖД - Медицина\" ",0,0,0,{"$f":"Таблица1[[#This Row],[Оплачено случаев]]-Таблица1[[#This Row],[План ДВН, чел.]]","v":0},{"$f":"ROUND(Таблица1[[#This Row],[Оплачено случаев]]/Таблица1[[#This Row],[План ДВН, чел.]]*100,1)","v":{"$error":"#DIV/0!"}}]
["Август","ДВН","КБ № 8 ФМБА",0,0,0,{"$f":"Таблица1[[#This Row],[Оплачено случаев]]-Таблица1[[#This Row],[План ДВН, чел.]]","v":0},{"$f":"ROUND(Таблица1[[#This Row],[Оплачено случаев]]/Таблица1[[#This Row],[План ДВН, чел.]]*100,1)","v":{"$error":"#DIV/0!"}}]
["Август","ДВН","ЦРБ Бабынинского района",0,0,0,{"$f":"Таблица1[[#This Row],[Оплачено случаев]]-Таблица1[[#This Row],[План ДВН, чел.]]","v":0},{"$f":"ROUND(Таблица1[[#This Row],[Оплачено случаев]]/Таблица1[[#This Row],[План ДВН, чел.]]*100,1)","v":{"$error":"#DIV/0!"}}]
["Август","ДВН","ЦРБ Боровского района",0,0,0,{"$f":"Таблица1[[#This Row],[Оплачено случаев]]-Таблица1[[#This Row],[План ДВН, чел.]]","v":0},{"$f":"ROUND(Таблица1[[#This Row],[Оплачено случаев]]/Таблица1[[#This Row],[План ДВН, чел.]]*100,1)","v":{"$error":"#DIV/0!"}}]
["Август","ДВН","ЦРБ Жуковского района",0,0,0,{"$f":"Таблица1[[#This Row],[Оплачено случаев]]-Таблица1[[#This Row],[План ДВН, чел.]]","v":0},{"$f":"ROUND(Таблица1[[#This Row],[Оплачено случаев]]/Таблица1[[#This Row],[План ДВН, чел.]]*100,1)","v":{"$error":"#DIV/0!"}}]
["Август","ДВН","ГП \"Город Кременки\"",0,0,0,{"$f":"Таблица1[[#This Row],[Оплачено случаев]]-Таблица1[[#This Row],[План ДВН, чел.]]","v":0},{"$f":"ROUND(Таблица1[[#This Row],[Оплачено случаев]]/Таблица1[[#This Row],[План ДВН, чел.]]*100,1)","v":{"$error":"#DIV/0!"}}]
["Август","ДВН","ЦРБ Малоярославецкого района",0,0,0,{"$f":"Таблица1[[#This Row],[Оплачено случаев]]-Таблица1[[#This Row],[План ДВН, чел.]]","v":0},{"$f":"ROUND(Таблица1[[#This Row],[Оплачено случаев]]/Таблица1[[#This Row],[План ДВН, чел.]]*100,1)","v":{"$error":"#DIV/0!"}}]
["Август","ДВН","ЦРБ  Тарусского района",0,0,0,{"$f":"Таблица1[[#This Row],[Оплачено случаев]]-Таблица1[[#This Row],[План ДВН, чел.]]","v":0},{"$f":"ROUND(Таблица1[[#This Row],[Оплачено случаев]]/Таблица1[[#This Row],[План ДВН, чел.]]*100,1)","v":{"$error":"#DIV/0!"}}]
["Сентябрь","ДВН","ЦМБ № 1",{"$f":"AX4","v":0},{"$f":"AY4","v":0},{"$f":"AZ4","v":0},{"$f":"Таблица1[[#This Row],[Оплачено случаев]]-Таблица1[[#This Row],[План ДВН, чел.]]","v":0},{"$f":"ROUND(Таблица1[[#This Row],[Оплачено случаев]]/Таблица1[[#This Row],[План ДВН, чел.]]*100,1)","v":{"$error":"#DIV/0!"}}]
["Сентябрь","ДВН","ЦМБ № 2",0,0,0,{"$f":"Таблица1[[#This Row],[Оплачено случаев]]-Таблица1[[#This Row],[План ДВН, чел.]]","v":0},{"$f":"ROUND(Таблица1[[#This Row],[Оплачено случаев]]/Таблица1[[#This Row],[План ДВН, чел.]]*100,1)","v":{"$error":"#DIV/0!"}}]
["Сентябрь","ДВН","ЦМБ № 3",0,0,0,{"$f":"Таблица1[[#This Row],[Оплачено случаев]]-Таблица1[[#This Row],[План ДВН, чел.]]","v":0},{"$f":"ROUND(Таблица1[[#This Row],[Оплачено случаев]]/Таблица1[[#This Row],[План ДВН, чел.]]*100,1)","v":{"$error":"#DIV/0!"}}]
["Сентябрь","ДВН","ЦМБ № 4",0,0,0,{"$f":"Таблица1[[#This Row],[Оплачено случаев]]-Таблица1[[#This Row],[План ДВН, чел.]]","v":0},{"$f":"ROUND(Таблица1[[#This Row],[Оплачено случаев]]/Таблица1[[#This Row],[План ДВН, чел.]]*100,1)","v":{"$error":"#DIV/0!"}}]
["Сентябрь","ДВН","ЦМБ № 5",0,0,0,{"$f":"Таблица1[[#This Row],[Оплачено случаев]]-Таблица1[[#This Row],[План ДВН, чел.]]","v":0},{"$f":"ROUND(Таблица1[[#This Row],[Оплачено случаев]]/Таблица1[[#This Row],[План ДВН, чел.]]*100,1)","v":{"$error":"#DIV/0!"}}]
["Сентябрь","ДВН","ЦМБ № 6",0,0,0,{"$f":"Таблица1[[#This Row],[Оплачено случаев]]-Таблица1[[#This Row],[План ДВН, чел.]]","v":0},{"$f":"ROUND(Таблица1[[#This Row],[Оплачено случаев]]/Таблица1[[#This Row],[План ДВН, чел.]]*100,1)","v":{"$error":"#DIV/0!"}}]
["Сентябрь","ДВН","КГБ № 5",0,0,0,{"$f":"Таблица1[[#This Row],[Оплачено случаев]]-Таблица1[[#This Row],[План ДВН, чел.]]","v":0},{"$f":"ROUND(Таблица1[[#This Row],[Оплачено случаев]]/Таблица1[[#This Row],[План ДВН, чел.]]*100,1)","v":{"$error":"#DIV/0!"}}]
["Сентябрь","ДВН","КГКБ № 4",0,0,0,{"$f":"Таблица1[[#This Row],[Оплачено случаев]]-Таблица1[[#This Row],[План ДВН, чел.]]","v":0},{"$f":"ROUND(Таблица1[[#This Row],[Оплачено случаев]]/Таблица1[[#This Row],[План ДВН, чел.]]*100,1)","v":{"$error":"#DIV/0!"}}]
["Сентябрь","ДВН","Городская поликлиника",0,0,0,{"$f":"Таблица1[[#This Row],[Оплачено случаев]]-Таблица1[[#This Row],[План ДВН, чел.]]","v":0},{"$f":"ROUND(Таблица1[[#This Row],[Оплачено случаев]]/Таблица1[[#This Row],[План ДВН, чел.]]*100,1)","v":{"$error":"#DIV/0!"}}]
["Сентябрь","ДВН","МСЧ № 1 г. Калуги",0,0,0,{"$f":"Таблица1[[#This Row],[Оплачено случаев]]-Таблица1[[#This Row],[План ДВН, чел.]]","v":0},{"$f":"ROUND(Таблица1[[#This Row],[Оплачено случаев]]/Таблица1[[#This Row],[План ДВН, чел.]]*100,1)","v":{"$error":"#DIV/0!"}}]
["Сентябрь","ДВН","МСЧ № 2 г. Калуги",0,0,0,{"$f":"Таблица1[[#This Row],[Оплачено случаев]]-Таблица1[[#This Row],[План ДВН, чел.]]","v":0},{"$f":"ROUND(Таблица1[[#This Row],[Оплачено случаев]]/Таблица1[[#This Row],[План ДВН, чел.]]*100,1)","v":{"$error":"#DIV/0!"}}]
["Сентябрь","ДВН","МСЧ МВД",0,0,0,{"$f":"Таблица1[[#This Row],[Оплачено случаев]]-Таблица1[[#This Row],[План ДВН, чел.]]","v":0},{"$f":"ROUND(Таблица1[[#This Row],[Оплачено случаев]]/Таблица1[[#This Row],[План ДВН, чел.]]*100,1)","v":{"$error":"#DIV/0!"}}]
["Сентябрь","ДВН","ЧУЗ \"Больница \"РЖД - Медицина\" ",0,0,0,{"$f":"Таблица1[[#This Row],[Оплачено случаев]]-Таблица1[[#This Row],[План ДВН, чел.]]","v":0},{"$f":"ROUND(Таблица1[[#This Row],[Оплачено случаев]]/Таблица1[[#This Row],[План ДВН, чел.]]*100,1)","v":{"$error":"#DIV/0!"}}]
["Сентябрь","ДВН","КБ № 8 ФМБА",0,0,0,{"$f":"Таблица1[[#This Row],[Оплачено случаев]]-Таблица1[[#This Row],[План ДВН, чел.]]","v":0},{"$f":"ROUND(Таблица1[[#This Row],[Оплачено случаев]]/Таблица1[[#This Row],[План ДВН, чел.]]*100,1)","v":{"$error":"#DIV/0!"}}]
["Сентябрь","ДВН","ЦРБ Бабынинского района",0,0,0,{"$f":"Таблица1[[#This Row],[Оплачено случаев]]-Таблица1[[#This Row],[План ДВН, чел.]]","v":0},{"$f":"ROUND(Таблица1[[#This Row],[Оплачено случаев]]/Таблица1[[#This Row],[План ДВН, чел.]]*100,1)","v":{"$error":"#DIV/0!"}}]
["Сентябрь","ДВН","ЦРБ Боровского района",0,0,0,{"$f":"Таблица1[[#This Row],[Оплачено случаев]]-Таблица1[[#This Row],[План ДВН, чел.]]","v":0},{"$f":"ROUND(Таблица1[[#This Row],[Оплачено случаев]]/Таблица1[[#This Row],[План ДВН, чел.]]*100,1)","v":{"$error":"#DIV/0!"}}]
["Сентябрь","ДВН","ЦРБ Жуковского района",0,0,0,{"$f":"Таблица1[[#This Row],[Оплачено случаев]]-Таблица1[[#This Row],[План ДВН, чел.]]","v":0},{"$f":"ROUND(Таблица1[[#This Row],[Оплачено случаев]]/Таблица1[[#This Row],[План ДВН, чел.]]*100,1)","v":{"$error":"#DIV/0!"}}]
["Сентябрь","ДВН","ГП \"Город Кременки\"",0,0,0,{"$f":"Таблица1[[#This Row],[Оплачено случаев]]-Таблица1[[#This Row],[План ДВН, чел.]]","v":0},{"$f":"ROUND(Таблица1[[#This Row],[Оплачено случаев]]/Таблица1[[#This Row],[План ДВН, чел.]]*100,1)","v":{"$error":"#DIV/0!"}}]
["Сентябрь","ДВН","ЦРБ Малоярославецкого района",0,0,0,{"$f":"Таблица1[[#This Row],[Оплачено случаев]]-Таблица1[[#This Row],[План ДВН, чел.]]","v":0},{"$f":"ROUND(Таблица1[[#This Row],[Оплачено случаев]]/Таблица1[[#This Row],[План ДВН, чел.]]*100,1)","v":{"$error":"#DIV/0!"}}]
["Сентябрь","ДВН","ЦРБ  Тарусского района",0,0,0,{"$f":"Таблица1[[#This Row],[Оплачено случаев]]-Таблица1[[#This Row],[План ДВН, чел.]]","v":0},{"$f":"ROUND(Таблица1[[#This Row],[Оплачено случаев]]/Таблица1[[#This Row],[План ДВН, чел.]]*100,1)","v":{"$error":"#DIV/0!"}}]
["Октябрь","ДВН","ЦМБ № 1",{"$f":"BC4","v":0},{"$f":"BD4","v":0},{"$f":"BE4","v":0},{"$f":"Таблица1[[#This Row],[Оплачено случаев]]-Таблица1[[#This Row],[План ДВН, чел.]]","v":0},{"$f":"ROUND(Таблица1[[#This Row],[Оплачено случаев]]/Таблица1[[#This Row],[План ДВН, чел.]]*100,1)","v":{"$error":"#DIV/0!"}}]
["Октябрь","ДВН","ЦМБ № 2",0,0,0,{"$f":"Таблица1[[#This Row],[Оплачено случаев]]-Таблица1[[#This Row],[План ДВН, чел.]]","v":0},{"$f":"ROUND(Таблица1[[#This Row],[Оплачено случаев]]/Таблица1[[#This Row],[План ДВН, чел.]]*100,1)","v":{"$error":"#DIV/0!"}}]
["Октябрь","ДВН","ЦМБ № 3",0,0,0,{"$f":"Таблица1[[#This Row],[Оплачено случаев]]-Таблица1[[#This Row],[План ДВН, чел.]]","v":0},{"$f":"ROUND(Таблица1[[#This Row],[Оплачено случаев]]/Таблица1[[#This Row],[План ДВН, чел.]]*100,1)","v":{"$error":"#DIV/0!"}}]
["Октябрь","ДВН","ЦМБ № 4",0,0,0,{"$f":"Таблица1[[#This Row],[Оплачено случаев]]-Таблица1[[#This Row],[План ДВН, чел.]]","v":0},{"$f":"ROUND(Таблица1[[#This Row],[Оплачено случаев]]/Таблица1[[#This Row],[План ДВН, чел.]]*100,1)","v":{"$error":"#DIV/0!"}}]
["Октябрь","ДВН","ЦМБ № 5",0,0,0,{"$f":"Таблица1[[#This Row],[Оплачено случаев]]-Таблица1[[#This Row],[План ДВН, чел.]]","v":0},{"$f":"ROUND(Таблица1[[#This Row],[Оплачено случаев]]/Таблица1[[#This Row],[План ДВН, чел.]]*100,1)","v":{"$error":"#DIV/0!"}}]
["Октябрь","ДВН","ЦМБ № 6",0,0,0,{"$f":"Таблица1[[#This Row],[Оплачено случаев]]-Таблица1[[#This Row],[План ДВН, чел.]]","v":0},{"$f":"ROUND(Таблица1[[#This Row],[Оплачено случаев]]/Таблица1[[#This Row],[План ДВН, чел.]]*100,1)","v":{"$error":"#DIV/0!"}}]
["Октябрь","ДВН","КГБ № 5",0,0,0,{"$f":"Таблица1[[#This Row],[Оплачено случаев]]-Таблица1[[#This Row],[План ДВН, чел.]]","v":0},{"$f":"ROUND(Таблица1[[#This Row],[Оплачено случаев]]/Таблица1[[#This Row],[План ДВН, чел.]]*100,1)","v":{"$error":"#DIV/0!"}}]
["Октябрь","ДВН","КГКБ № 4",0,0,0,{"$f":"Таблица1[[#This Row],[Оплачено случаев]]-Таблица1[[#This Row],[План ДВН, чел.]]","v":0},{"$f":"ROUND(Таблица1[[#This Row],[Оплачено случаев]]/Таблица1[[#This Row],[План ДВН, чел.]]*100,1)","v":{"$error":"#DIV/0!"}}]
["Октябрь","ДВН","Городская поликлиника",0,0,0,{"$f":"Таблица1[[#This Row],[Оплачено случаев]]-Таблица1[[#This Row],[План ДВН, чел.]]","v":0},{"$f":"ROUND(Таблица1[[#This Row],[Оплачено случаев]]/Таблица1[[#This Row],[План ДВН, чел.]]*100,1)","v":{"$error":"#DIV/0!"}}]
["Октябрь","ДВН","МСЧ № 1 г. Калуги",0,0,0,{"$f":"Таблица1[[#This Row],[Оплачено случаев]]-Таблица1[[#This Row],[План ДВН, чел.]]","v":0},{"$f":"ROUND(Таблица1[[#This Row],[Оплачено случаев]]/Таблица1[[#This Row],[План ДВН, чел.]]*100,1)","v":{"$error":"#DIV/0!"}}]
["Октябрь","ДВН","МСЧ № 2 г. Калуги",0,0,0,{"$f":"Таблица1[[#This Row],[Оплачено случаев]]-Таблица1[[#This Row],[План ДВН, чел.]]","v":0},{"$f":"ROUND(Таблица1[[#This Row],[Оплачено случаев]]/Таблица1[[#This Row],[План ДВН, чел.]]*100,1)","v":{"$error":"#DIV/0!"}}]
["Октябрь","ДВН","МСЧ МВД",0,0,0,{"$f":"Таблица1[[#This Row],[Оплачено случаев]]-Таблица1[[#This Row],[План ДВН, чел.]]","v":0},{"$f":"ROUND(Таблица1[[#This Row],[Оплачено случаев]]/Таблица1[[#This Row],[План ДВН, чел.]]*100,1)","v":{"$error":"#DIV/0!"}}]
["Октябрь","ДВН","ЧУЗ \"Больница \"РЖД - Медицина\" ",0,0,0,{"$f":"Таблица1[[#This Row],[Оплачено случаев]]-Таблица1[[#This Row],[План ДВН, чел.]]","v":0},{"$f":"ROUND(Таблица1[[#This Row],[Оплачено случаев]]/Таблица1[[#This Row],[План ДВН, чел.]]*100,1)","v":{"$error":"#DIV/0!"}}]
["Октябрь","ДВН","КБ № 8 ФМБА",0,0,0,{"$f":"Таблица1[[#This Row],[Оплачено случаев]]-Таблица1[[#This Row],[План ДВН, чел.]]","v":0},{"$f":"ROUND(Таблица1[[#This Row],[Оплачено случаев]]/Таблица1[[#This Row],[План ДВН, чел.]]*100,1)","v":{"$error":"#DIV/0!"}}]
["Октябрь","ДВН","ЦРБ Бабынинского района",0,0,0,{"$f":"Таблица1[[#This Row],[Оплачено случаев]]-Таблица1[[#This Row],[План ДВН, чел.]]","v":0},{"$f":"ROUND(Таблица1[[#This Row],[Оплачено случаев]]/Таблица1[[#This Row],[План ДВН, чел.]]*100,1)","v":{"$error":"#DIV/0!"}}]
["Октябрь","ДВН","ЦРБ Боровского района",0,0,0,{"$f":"Таблица1[[#This Row],[Оплачено случаев]]-Таблица1[[#This Row],[План ДВН, чел.]]","v":0},{"$f":"ROUND(Таблица1[[#This Row],[Оплачено случаев]]/Таблица1[[#This Row],[План ДВН, чел.]]*100,1)","v":{"$error":"#DIV/0!"}}]
["Октябрь","ДВН","ЦРБ Жуковского района",0,0,0,{"$f":"Таблица1[[#This Row],[Оплачено случаев]]-Таблица1[[#This Row],[План ДВН, чел.]]","v":0},{"$f":"ROUND(Таблица1[[#This Row],[Оплачено случаев]]/Таблица1[[#This Row],[План ДВН, чел.]]*100,1)","v":{"$error":"#DIV/0!"}}]
["Октябрь","ДВН","ГП \"Город Кременки\"",0,0,0,{"$f":"Таблица1[[#This Row],[Оплачено случаев]]-Таблица1[[#This Row],[План ДВН, чел.]]","v":0},{"$f":"ROUND(Таблица1[[#This Row],[Оплачено случаев]]/Таблица1[[#This Row],[План ДВН, чел.]]*100,1)","v":{"$error":"#DIV/0!"}}]
["Октябрь","ДВН","ЦРБ Малоярославецкого района",0,0,0,{"$f":"Таблица1[[#This Row],[Оплачено случаев]]-Таблица1[[#This Row],[План ДВН, чел.]]","v":0},{"$f":"ROUND(Таблица1[[#This Row],[Оплачено случаев]]/Таблица1[[#This Row],[План ДВН, чел.]]*100,1)","v":{"$error":"#DIV/0!"}}]
["Октябрь","ДВН","ЦРБ  Тарусского района",0,0,0,{"$f":"Таблица1[[#This Row],[Оплачено случаев]]-Таблица1[[#This Row],[План ДВН, чел.]]","v":0},{"$f":"ROUND(Таблица1[[#This Row],[Оплачено случаев]]/Таблица1[[#This Row],[План ДВН, чел.]]*100,1)","v":{"$error":"#DIV/0!"}}]
["Ноябрь","ДВН","ЦМБ № 1",{"$f":"BH4","v":0},{"$f":"BI4","v":0},{"$f":"BJ4","v":0},{"$f":"Таблица1[[#This Row],[Оплачено случаев]]-Таблица1[[#This Row],[План ДВН, чел.]]","v":0},{"$f":"ROUND(Таблица1[[#This Row],[Оплачено случаев]]/Таблица1[[#This Row],[План ДВН, чел.]]*100,1)","v":{"$error":"#DIV/0!"}}]
["Ноябрь","ДВН","ЦМБ № 2",0,0,0,{"$f":"Таблица1[[#This Row],[Оплачено случаев]]-Таблица1[[#This Row],[План ДВН, чел.]]","v":0},{"$f":"ROUND(Таблица1[[#This Row],[Оплачено случаев]]/Таблица1[[#This Row],[План ДВН, чел.]]*100,1)","v":{"$error":"#DIV/0!"}}]
["Ноябрь","ДВН","ЦМБ № 3",0,0,0,{"$f":"Таблица1[[#This Row],[Оплачено случаев]]-Таблица1[[#This Row],[План ДВН, чел.]]","v":0},{"$f":"ROUND(Таблица1[[#This Row],[Оплачено случаев]]/Таблица1[[#This Row],[План ДВН, чел.]]*100,1)","v":{"$error":"#DIV/0!"}}]
["Ноябрь","ДВН","ЦМБ № 4",0,0,0,{"$f":"Таблица1[[#This Row],[Оплачено случаев]]-Таблица1[[#This Row],[План ДВН, чел.]]","v":0},{"$f":"ROUND(Таблица1[[#This Row],[Оплачено случаев]]/Таблица1[[#This Row],[План ДВН, чел.]]*100,1)","v":{"$error":"#DIV/0!"}}]
["Ноябрь","ДВН","ЦМБ № 5",0,0,0,{"$f":"Таблица1[[#This Row],[Оплачено случаев]]-Таблица1[[#This Row],[План ДВН, чел.]]","v":0},{"$f":"ROUND(Таблица1[[#This Row],[Оплачено случаев]]/Таблица1[[#This Row],[План ДВН, чел.]]*100,1)","v":{"$error":"#DIV/0!"}}]
["Ноябрь","ДВН","ЦМБ № 6",0,0,0,{"$f":"Таблица1[[#This Row],[Оплачено случаев]]-Таблица1[[#This Row],[План ДВН, чел.]]","v":0},{"$f":"ROUND(Таблица1[[#This Row],[Оплачено случаев]]/Таблица1[[#This Row],[План ДВН, чел.]]*100,1)","v":{"$error":"#DIV/0!"}}]
["Ноябрь","ДВН","КГБ № 5",0,0,0,{"$f":"Таблица1[[#This Row],[Оплачено случаев]]-Таблица1[[#This Row],[План ДВН, чел.]]","v":0},{"$f":"ROUND(Таблица1[[#This Row],[Оплачено случаев]]/Таблица1[[#This Row],[План ДВН, чел.]]*100,1)","v":{"$error":"#DIV/0!"}}]
["Ноябрь","ДВН","КГКБ № 4",0,0,0,{"$f":"Таблица1[[#This Row],[Оплачено случаев]]-Таблица1[[#This Row],[План ДВН, чел.]]","v":0},{"$f":"ROUND(Таблица1[[#This Row],[Оплачено случаев]]/Таблица1[[#This Row],[План ДВН, чел.]]*100,1)","v":{"$error":"#DIV/0!"}}]
["Ноябрь","ДВН","Городская поликлиника",0,0,0,{"$f":"Таблица1[[#This Row],[Оплачено случаев]]-Таблица1[[#This Row],[План ДВН, чел.]]","v":0},{"$f":"ROUND(Таблица1[[#This Row],[Оплачено случаев]]/Таблица1[[#This Row],[План ДВН, чел.]]*100,1)","v":{"$error":"#DIV/0!"}}]
["Ноябрь","ДВН","МСЧ № 1 г. Калуги",0,0,0,{"$f":"Таблица1[[#This Row],[Оплачено случаев]]-Таблица1[[#This Row],[План ДВН, чел.]]","v":0},{"$f":"ROUND(Таблица1[[#This Row],[Оплачено случаев]]/Таблица1[[#This Row],[План ДВН, чел.]]*100,1)","v":{"$error":"#DIV/0!"}}]
["Ноябрь","ДВН","МСЧ № 2 г. Калуги",0,0,0,{"$f":"Таблица1[[#This Row],[Оплачено случаев]]-Таблица1[[#This Row],[План ДВН, чел.]]","v":0},{"$f":"ROUND(Таблица1[[#This Row],[Оплачено случаев]]/Таблица1[[#This Row],[План ДВН, чел.]]*100,1)","v":{"$error":"#DIV/0!"}}]
["Ноябрь","ДВН","МСЧ МВД",0,0,0,{"$f":"Таблица1[[#This Row],[Оплачено случаев]]-Таблица1[[#This Row],[План ДВН, чел.]]","v":0},{"$f":"ROUND(Таблица1[[#This Row],[Оплачено случаев]]/Таблица1[[#This Row],[План ДВН, чел.]]*100,1)","v":{"$error":"#DIV/0!"}}]
["Ноябрь","ДВН","ЧУЗ \"Больница \"РЖД - Медицина\" ",0,0,0,{"$f":"Таблица1[[#This Row],[Оплачено случаев]]-Таблица1[[#This Row],[План ДВН, чел.]]","v":0},{"$f":"ROUND(Таблица1[[#This Row],[Оплачено случаев]]/Таблица1[[#This Row],[План ДВН, чел.]]*100,1)","v":{"$error":"#DIV/0!"}}]
["Ноябрь","ДВН","КБ № 8 ФМБА",0,0,0,{"$f":"Таблица1[[#This Row],[Оплачено случаев]]-Таблица1[[#This Row],[План ДВН, чел.]]","v":0},{"$f":"ROUND(Таблица1[[#This Row],[Оплачено случаев]]/Таблица1[[#This Row],[План ДВН, чел.]]*100,1)","v":{"$error":"#DIV/0!"}}]
["Ноябрь","ДВН","ЦРБ Бабынинского района",0,0,0,{"$f":"Таблица1[[#This Row],[Оплачено случаев]]-Таблица1[[#This Row],[План ДВН, чел.]]","v":0},{"$f":"ROUND(Таблица1[[#This Row],[Оплачено случаев]]/Таблица1[[#This Row],[План ДВН, чел.]]*100,1)","v":{"$error":"#DIV/0!"}}]
["Ноябрь","ДВН","ЦРБ Боровского района",0,0,0,{"$f":"Таблица1[[#This Row],[Оплачено случаев]]-Таблица1[[#This Row],[План ДВН, чел.]]","v":0},{"$f":"ROUND(Таблица1[[#This Row],[Оплачено случаев]]/Таблица1[[#This Row],[План ДВН, чел.]]*100,1)","v":{"$error":"#DIV/0!"}}]
["Ноябрь","ДВН","ЦРБ Жуковского района",0,0,0,{"$f":"Таблица1[[#This Row],[Оплачено случаев]]-Таблица1[[#This Row],[План ДВН, чел.]]","v":0},{"$f":"ROUND(Таблица1[[#This Row],[Оплачено случаев]]/Таблица1[[#This Row],[План ДВН, чел.]]*100,1)","v":{"$error":"#DIV/0!"}}]
["Ноябрь","ДВН","ГП \"Город Кременки\"",0,0,0,{"$f":"Таблица1[[#This Row],[Оплачено случаев]]-Таблица1[[#This Row],[План ДВН, чел.]]","v":0},{"$f":"ROUND(Таблица1[[#This Row],[Оплачено случаев]]/Таблица1[[#This Row],[План ДВН, чел.]]*100,1)","v":{"$error":"#DIV/0!"}}]
["Ноябрь","ДВН","ЦРБ Малоярославецкого района",0,0,0,{"$f":"Таблица1[[#This Row],[Оплачено случаев]]-Таблица1[[#This Row],[План ДВН, чел.]]","v":0},{"$f":"ROUND(Таблица1[[#This Row],[Оплачено случаев]]/Таблица1[[#This Row],[План ДВН, чел.]]*100,1)","v":{"$error":"#DIV/0!"}}]
["Ноябрь","ДВН","ЦРБ  Тарусского района",0,0,0,{"$f":"Таблица1[[#This Row],[Оплачено случаев]]-Таблица1[[#This Row],[План ДВН, чел.]]","v":0},{"$f":"ROUND(Таблица1[[#This Row],[Оплачено случаев]]/Таблица1[[#This Row],[План ДВН, чел.]]*100,1)","v":{"$error":"#DIV/0!"}}]
["Декабрь","ДВН","ЦМБ № 1",{"$f":"BM4","v":0},{"$f":"BN4","v":0},{"$f":"BO4","v":0},{"$f":"Таблица1[[#This Row],[Оплачено случаев]]-Таблица1[[#This Row],[План ДВН, чел.]]","v":0},{"$f":"ROUND(Таблица1[[#This Row],[Оплачено случаев]]/Таблица1[[#This Row],[План ДВН, чел.]]*100,1)","v":{"$error":"#DIV/0!"}}]
["Декабрь","ДВН","ЦМБ № 2",0,0,0,{"$f":"Таблица1[[#This Row],[Оплачено случаев]]-Таблица1[[#This Row],[План ДВН, чел.]]","v":0},{"$f":"ROUND(Таблица1[[#This Row],[Оплачено случаев]]/Таблица1[[#This Row],[План ДВН, чел.]]*100,1)","v":{"$error":"#DIV/0!"}}]
["Декабрь","ДВН","ЦМБ № 3",0,0,0,{"$f":"Таблица1[[#This Row],[Оплачено случаев]]-Таблица1[[#This Row],[План ДВН, чел.]]","v":0},{"$f":"ROUND(Таблица1[[#This Row],[Оплачено случаев]]/Таблица1[[#This Row],[План ДВН, чел.]]*100,1)","v":{"$error":"#DIV/0!"}}]
["Декабрь","ДВН","ЦМБ № 4",0,0,0,{"$f":"Таблица1[[#This Row],[Оплачено случаев]]-Таблица1[[#This Row],[План ДВН, чел.]]","v":0},{"$f":"ROUND(Таблица1[[#This Row],[Оплачено случаев]]/Таблица1[[#This Row],[План ДВН, чел.]]*100,1)","v":{"$error":"#DIV/0!"}}]
["Декабрь","ДВН","ЦМБ № 5",0,0,0,{"$f":"Таблица1[[#This Row],[Оплачено случаев]]-Таблица1[[#This Row],[План ДВН, чел.]]","v":0},{"$f":"ROUND(Таблица1[[#This Row],[Оплачено случаев]]/Таблица1[[#This Row],[План ДВН, чел.]]*100,1)","v":{"$error":"#DIV/0!"}}]
["Декабрь","ДВН","ЦМБ № 6",0,0,0,{"$f":"Таблица1[[#This Row],[Оплачено случаев]]-Таблица1[[#This Row],[План ДВН, чел.]]","v":0},{"$f":"ROUND(Таблица1[[#This Row],[Оплачено случаев]]/Таблица1[[#This Row],[План ДВН, чел.]]*100,1)","v":{"$error":"#DIV/0!"}}]
["Декабрь","ДВН","КГБ № 5",0,0,0,{"$f":"Таблица1[[#This Row],[Оплачено случаев]]-Таблица1[[#This Row],[План ДВН, чел.]]","v":0},{"$f":"ROUND(Таблица1[[#This Row],[Оплачено случаев]]/Таблица1[[#This Row],[План ДВН, чел.]]*100,1)","v":{"$error":"#DIV/0!"}}]
["Декабрь","ДВН","КГКБ № 4",0,0,0,{"$f":"Таблица1[[#This Row],[Оплачено случаев]]-Таблица1[[#This Row],[План ДВН, чел.]]","v":0},{"$f":"ROUND(Таблица1[[#This Row],[Оплачено случаев]]/Таблица1[[#This Row],[План ДВН, чел.]]*100,1)","v":{"$error":"#DIV/0!"}}]
["Декабрь","ДВН","Городская поликлиника",0,0,0,{"$f":"Таблица1[[#This Row],[Оплачено случаев]]-Таблица1[[#This Row],[План ДВН, чел.]]","v":0},{"$f":"ROUND(Таблица1[[#This Row],[Оплачено случаев]]/Таблица1[[#This Row],[План ДВН, чел.]]*100,1)","v":{"$error":"#DIV/0!"}}]
["Декабрь","ДВН","МСЧ № 1 г. Калуги",0,0,0,{"$f":"Таблица1[[#This Row],[Оплачено случаев]]-Таблица1[[#This Row],[План ДВН, чел.]]","v":0},{"$f":"ROUND(Таблица1[[#This Row],[Оплачено случаев]]/Таблица1[[#This Row],[План ДВН, чел.]]*100,1)","v":{"$error":"#DIV/0!"}}]
["Декабрь","ДВН","МСЧ № 2 г. Калуги",0,0,0,{"$f":"Таблица1[[#This Row],[Оплачено случаев]]-Таблица1[[#This Row],[План ДВН, чел.]]","v":0},{"$f":"ROUND(Таблица1[[#This Row],[Оплачено случаев]]/Таблица1[[#This Row],[План ДВН, чел.]]*100,1)","v":{"$error":"#DIV/0!"}}]
["Декабрь","ДВН","МСЧ МВД",0,0,0,{"$f":"Таблица1[[#This Row],[Оплачено случаев]]-Таблица1[[#This Row],[План ДВН, чел.]]","v":0},{"$f":"ROUND(Таблица1[[#This Row],[Оплачено случаев]]/Таблица1[[#This Row],[План ДВН, чел.]]*100,1)","v":{"$error":"#DIV/0!"}}]
["Декабрь","ДВН","ЧУЗ \"Больница \"РЖД - Медицина\" ",0,0,0,{"$f":"Таблица1[[#This Row],[Оплачено случаев]]-Таблица1[[#This Row],[План ДВН, чел.]]","v":0},{"$f":"ROUND(Таблица1[[#This Row],[Оплачено случаев]]/Таблица1[[#This Row],[План ДВН, чел.]]*100,1)","v":{"$error":"#DIV/0!"}}]
["Декабрь","ДВН","КБ № 8 ФМБА",0,0,0,{"$f":"Таблица1[[#This Row],[Оплачено случаев]]-Таблица1[[#This Row],[План ДВН, чел.]]","v":0},{"$f":"ROUND(Таблица1[[#This Row],[Оплачено случаев]]/Таблица1[[#This Row],[План ДВН, чел.]]*100,1)","v":{"$error":"#DIV/0!"}}]
["Декабрь","ДВН","ЦРБ Бабынинского района",0,0,0,{"$f":"Таблица1[[#This Row],[Оплачено случаев]]-Таблица1[[#This Row],[План ДВН, чел.]]","v":0},{"$f":"ROUND(Таблица1[[#This Row],[Оплачено случаев]]/Таблица1[[#This Row],[План ДВН, чел.]]*100,1)","v":{"$error":"#DIV/0!"}}]
["Декабрь","ДВН","ЦРБ Боровского района",0,0,0,{"$f":"Таблица1[[#This Row],[Оплачено случаев]]-Таблица1[[#This Row],[План ДВН, чел.]]","v":0},{"$f":"ROUND(Таблица1[[#This Row],[Оплачено случаев]]/Таблица1[[#This Row],[План ДВН, чел.]]*100,1)","v":{"$error":"#DIV/0!"}}]
["Декабрь","ДВН","ЦРБ Жуковского района",0,0,0,{"$f":"Таблица1[[#This Row],[Оплачено случаев]]-Таблица1[[#This Row],[План ДВН, чел.]]","v":0},{"$f":"ROUND(Таблица1[[#This Row],[Оплачено случаев]]/Таблица1[[#This Row],[План ДВН, чел.]]*100,1)","v":{"$error":"#DIV/0!"}}]
["Декабрь","ДВН","ГП \"Город Кременки\"",0,0,0,{"$f":"Таблица1[[#This Row],[Оплачено случаев]]-Таблица1[[#This Row],[План ДВН, чел.]]","v":0},{"$f":"ROUND(Таблица1[[#This Row],[Оплачено случаев]]/Таблица1[[#This Row],[План ДВН, чел.]]*100,1)","v":{"$error":"#DIV/0!"}}]
["Декабрь","ДВН","ЦРБ Малоярославецкого района",0,0,0,{"$f":"Таблица1[[#This Row],[Оплачено случаев]]-Таблица1[[#This Row],[План ДВН, чел.]]","v":0},{"$f":"ROUND(Таблица1[[#This Row],[Оплачено случаев]]/Таблица1[[#This Row],[План ДВН, чел.]]*100,1)","v":{"$error":"#DIV/0!"}}]
["Декабрь","ДВН","ЦРБ  Тарусского района",0,0,0,{"$f":"Таблица1[[#This Row],[Оплачено случаев]]-Таблица1[[#This Row],[План ДВН, чел.]]","v":0},{"$f":"ROUND(Таблица1[[#This Row],[Оплачено случаев]]/Таблица1[[#This Row],[План ДВН, чел.]]*100,1)","v":{"$error":"#DIV/0!"}}]

{"sheet":"Все МО","index":1,"n_rows":24,"n_cols":3,"rows_kept":24,"cut":false,"hidden":true,"merged":[]}
["Месяц","Март"]
[]
["Названия строк","Оплачено случаев ","План ДВН, чел. "]
["МСЧ № 2 г. Калуги",0,1]
["МСЧ МВД",0,0]
["ЦРБ Бабынинского района",4,30]
["ЦМБ № 2",21,541]
["ЧУЗ \"Больница \"РЖД - Медицина\" ",40,10]
["ГП \"Город Кременки\"",45,50]
["МСЧ № 1 г. Калуги",65,10]
["ЦМБ № 4",137,125]
["ЦМБ № 3",160,131]
["ЦРБ  Тарусского района",232,92]
["ЦМБ № 5",246,246]
["ЦРБ Малоярославецкого района",296,150]
["ЦМБ № 1",310,277]
["ЦРБ Жуковского района",312,240]
["ЦРБ Боровского района",397,319]
["КБ № 8 ФМБА",749,825]
["КГКБ № 4",980,745]
["ЦМБ № 6",1302,500]
["Городская поликлиника",1338,630]
["КГБ № 5",1405,1350]
["Общий итог",8039,6272]

{"sheet":"10 лучших","index":2,"n_rows":14,"n_cols":2,"rows_kept":14,"cut":false,"hidden":true,"merged":[]}
["Месяц","Март"]
[]
["Названия строк","% выполнения "]
["ЦМБ № 3",122.1]
["ЦРБ Боровского района",124.5]
["ЦРБ Жуковского района",130]
["КГКБ № 4",131.5]
["ЦРБ Малоярославецкого района",197.3]
["Городская поликлиника",212.4]
["ЦРБ  Тарусского района",252.2]
["ЦМБ № 6",260.39999999999998]
["ЧУЗ \"Больница \"РЖД - Медицина\" ",400]
["МСЧ № 1 г. Калуги",650]
["Общий итог",248.04000000000002]

{"sheet":"10 худших","index":3,"n_rows":14,"n_cols":2,"rows_kept":14,"cut":false,"hidden":true,"merged":[]}
["Месяц","Март"]
[]
["Названия строк","% выполнения "]
["МСЧ № 2 г. Калуги",0]
["ЦМБ № 2",3.9]
["ЦРБ Бабынинского района",13.3]
["ГП \"Город Кременки\"",90]
["КБ № 8 ФМБА",90.8]
["ЦМБ № 5",100]
["КГБ № 5",104.1]
["ЦМБ № 4",109.6]
["ЦМБ № 1",111.9]
["ЦМБ № 3",122.1]
["Общий итог",74.569999999999993]

{"sheet":"Помесячно по МО","index":4,"n_rows":16,"n_cols":4,"rows_kept":16,"cut":false,"hidden":true,"merged":[]}
["Выполнение ДВН"]
[]
["Названия строк","Оплачено случаев ","План ДВН, чел. ","Отклонение "]
["Январь",1299,606,693]
["Февраль",1854,630,1224]
["Март",1338,630,708]
["Апрель",0,0,0]
["Май",0,0,0]
["Июнь",0,0,0]
["Июль",0,0,0]
["Август",0,0,0]
["Сентябрь",0,0,0]
["Октябрь",0,0,0]
["Ноябрь",0,0,0]
["Декабрь",0,0,0]
["Общий итог",4491,1866,2625]

{"sheet":"Дашборд ДВН","index":5,"n_rows":2,"n_cols":1,"rows_kept":2,"cut":false,"hidden":false,"merged":[[1,0,1,24]]}
[]
["УГЛУБЛЕННАЯ ДИСПАНСЕРИЗАЦИЯ НАСЕЛЕНИЯ В 2023 ГОДУ"]